Workbook

Sheet 1. Info
AB1: Algoma Power Inc.
AB2: Atikokan Hydro Inc.
AB3: Attawapiskat Power Corporation
AB4: Bluewater Power Distribution Corporation
AB5: Brantford Power Inc.
AB6: Burlington Hydro Inc.
AB7: Canadian Niagara Power Inc.
AB8: Centre Wellington Hydro Ltd.
AB9: Chapleau Public Utilities Corporation
AB10: COLLUS PowerStream Corp.
AB11: Cooperative Hydro Embrun Inc.
AB12: E.L.K. Energy Inc.
A13: Drop-down lists are shaded blue; Input cells are shaded green. | AB13: Energy + Inc.
AB14: Enersource Hydro Mississauga Inc.
C15: Utility Name | D15: Kingston Hydro Corporation | AB15: Entegrus Powerlines Inc.
AB16: EnWin Utilities Ltd.
C17: Service Territory | D17: Kingston, ON | AB17: Erie Thames Powerlines Corporation
AB18: Espanola Regional Hydro Distribution Corporation
C19: Assigned EB Number | D19: EB-2016-0087 | AB19: Essex Powerlines Corporation
AB20: Festival Hydro Inc.
C21: Name and Title | D21: Sherry Gibson, Senior Advisor Rates & Regulatory Affairs | AB21: Fort Albany Power Corporation
AB22: Fort Frances Power Corporation
C23: Phone Number | D23: 613-546-1181 ext 2383 | AB23: Greater Sudbury Hydro Inc.
AB24: Grimsby Power Inc.
C25: Email Address | D25: sgibson@kingstonhydro.com | AB25: Guelph Hydro Electric Systems Inc.
AB26: Haldimand County Hydro Inc.
C27: Date | D27: 2016-Aug-15, Last Re-based Year: 2016 | AB27: Halton Hills Hydro Inc.
AB28: Hearst Power Distribution Company Limited
C29: Last COS Re-based Year | AB29: Horizon Utilities Corporation
AB30: Hydro 2000 Inc.
AB31: Hydro Hawkesbury Inc.
AB32: Hydro One Brampton Networks Inc.
AB33: Hydro One Networks Inc.
AB34: Hydro One Remote Communities Inc.
AB35: Hydro Ottawa Limited
AB36: Innpower Corporation
AB37: Kashechewan Power Corporation
AB38: Kenora Hydro Electric Corporation Ltd.
AB39: Kingston Hydro Corporation
AB40: Kitchener-Wilmot Hydro Inc.
AB41: Lakefront Utilities Inc.
AB42: Lakeland Power Distribution Ltd.
AB43: London Hydro Inc.
AB44: Midland Power Utility Corporation
AB45: Milton Hydro Distribution Inc.
AB46: Newmarket-Tay Power Distribution Ltd.
AB47: Niagara Peninsula Energy Inc.
AB48: Niagara-on-the-Lake Hydro Inc.
AB49: North Bay Hydro Distribution Limited
AB50: Northern Ontario Wires Inc.
AB51: Oakville Hydro Electricity Distribution Inc.
AB52: Orangeville Hydro Limited
AB53: Orillia Power Distribution Corporation
AB54: Oshawa PUC Networks Inc.
AB55: Ottawa River Power Corporation
AB56: Peterborough Distribution Incorporated
AB57: PowerStream Inc.
AB58: PUC Distribution Inc.
AB59: Renfrew Hydro Inc.
AB60: Rideau St. Lawrence Distribution Inc.
AB61: Sioux Lookout Hydro Inc.
AB62: St. Thomas Energy Inc.
AB63: Thunder Bay Hydro Electricity Distribution Inc.
AB64: Tillsonburg Hydro Inc.
AB65: Toronto Hydro-Electric System Limited
AB66: Veridian Connections Inc.
AB67: Wasaga Distribution Inc.
AB68: Waterloo North Hydro Inc.
AB69: Welland Hydro-Electric System Corp.
AB70: Wellington North Power Inc.
AB71: West Coast Huron Energy Inc.
AB72: Westario Power Inc.
AB73: Whitby Hydro Electric Corporation
AB74: Woodstock Hydro Services Inc.

Sheet 2. Table of Contents
D20: 1. Info | I20: 6. Historical Wholesale
D22: 2. Table of Contents | I22: 7. Current Wholesale
D24: 3. Rate Classes | I24: 8. Forecast Wholesale
D26: 4. RRR Data | I26: 9. RTSR Rates to Forecast
D28: 5. UTRs and Sub-Transmission

Sheet 3. Rate Classes
C13: 1. Select the appropriate rate classes that appear on your most recent Board-Approved Tariff of Rates and Charges. 2. Enter the RTS Network and Connection Rate as it appears on the Tariff of Rates and Charges
C15: Rate Class | E15: Unit | G15: RTSR-Network | I15: RTSR-Connection
C17: Residential | E17: kWh | G17: 0.0071 | I17: 0.0056 | L17: =IF(OR(ISBLANK(C17), ISERROR(FIND("Choose", C17))=FALSE), 0, 1) -> 1 | M17: ="C" & ROW(C17) -> C17 | N17: =IF(OR(C17="General Service Intermediate Rate Class 1,000 To 4,999 kW (formerly General Service > 50 kW Customers)", C17="General Service Intermediate Rate Class 1,000 To 4,999 kW (formerly Large Use Customers)"), "x", "") ->  | W17: Choose Rate Class
C18: General Service Less Than 50 kW | E18: kWh | G18: 0.0063 | I18: 0.0051 | L18: 1 | M18: C18 | N18: =IF(OR(C18="General Service Intermediate Rate Class 1,000 To 4,999 kW (formerly General Service > 50 kW Customers)", C18="General Service Intermediate Rate Class 1,000 To 4,999 kW (formerly Large Use Customers)"), "x", "") ->  | W18: Residential
C19: General Service 50 to 4,999 kW | E19: kW | G19: 2.7797 | I19: 2.2225 | L19: 1 | M19: C19 | W19: Residential Regular
C20: Large Use | E20: kW | G20: 3.3492 | I20: 2.678 | L20: 1 | M20: C20 | W20: Residential Urban
C21: Unmetered Scattered Load | E21: kWh | G21: 0.0071 | I21: 0.0056 | L21: 1 | M21: C21 | W21: Residential Urban Year-Round
C22: Street Lighting | E22: kW | G22: 2.0078 | I22: 1.6053 | L22: 1 | M22: C22 | W22: Residential Suburban
C23: Standby Power | E23: kW | L23: 1 | M23: C23 | W23: Residential Suburban Seasonal
C24: Choose Rate Class | L24: 0 | M24: C24 | W24: Residential Suburban Year Round
C25: Choose Rate Class | L25: 0 | M25: C25 | W25: Residential - Time of Use
C26: Choose Rate Class | L26: 0 | M26: C26 | W26: Residential - Hensall
C27: Choose Rate Class | L27: 0 | M27: C27 | W27: Residential – High Density [R1]
C28: Choose Rate Class | L28: 0 | M28: C28 | W28: Residential – Normal Density [R2]
C29: Choose Rate Class | L29: 0 | M29: C29 | W29: Seasonal Residential – High Density [R3]
C30: Choose Rate Class | L30: 0 | M30: C30 | W30: Seasonal Residential – Normal Density [R4]
C31: Choose Rate Class | L31: 0 | M31: C31 | W31: Residential – Urban [UR]
C32: Choose Rate Class | L32: 0 | M32: C32 | W32: General Service Less Than 50 kW
C33: Choose Rate Class | L33: 0 | M33: C33 | W33: General Service Less Than 50 kW – Single Phase energy-billed [G1]
C34: Choose Rate Class | L34: 0 | M34: C34 | W34: General Service Less Than 50 kW – Three Phase energy-billed [G3]
C35: Choose Rate Class | L35: 0 | M35: C35 | W35: General Service Less Than 50 kW – Transmission Class energy-billed [T]
C36: Choose Rate Class | L36: 0 | M36: C36 | W36: General Service Less Than 50 kW – Urban energy-billed [UG]
C37: Choose Rate Class | L37: 0 | M37: C37 | W37: Westport Sewage Treatment Plant
C38: Choose Rate Class | L38: 0 | M38: C38 | W38: Small Commercial and USL - per meter
N39: =COUNTIF(N17:N38, "x") -> 0 | W39: Small Commercial and USL - per connection
W40: Farms – Single Phase energy-billed [F1]
W41: General Service 50 to 499 kW
W42: General Service 50 to 699 kW
W43: General Service 50 to 999 kW
W44: General Service 50 to 999 kW - Interval Metered
W45: General Service 50 to 1,000 kW
W46: General Service 50 to 1,000 kW - Interval Meters
W47: General Service 50 to 1,000 kW - Non Interval Meters
W48: General Service 50 to 1,499 kW
W49: General Service 50 to 1,499 kW - Interval Metered
W50: General Service 50 to 2,499 kW
W51: General Service 50 to 2,999 kW
W52: General Service 50 to 2,999 kW - Time of Use
W53: General Service 50 to 4,999 kW
W54: General Service 50 to 4,999 kW – Interval Metered
W55: General Service 50 to 4,999 kW - Time of Use
W56: General Service 50 to 4,999 kW (CoGeneration)
W57: General Service 50 to 4,999 kW (formerly Time of Use)
W58: General Service 500 to 4,999 kW
W59: General Service 700 to 4,999 kW
W60: General Service 1,000 to 2,999 kW
W61: General Service 1,000 to 4,999 kW
W62: General Service 1,000 to 4,999 kW - Interval Meters
W63: General Service 1,000 To 4,999 kW (co-generation)
W64: General Service Greater Than 1,000 kW
W65: General Service Intermediate Rate Class 1,000 To 4,999 kW (formerly Large Use Customers)
W66: General Service Intermediate Rate Class 1,000 To 4,999 kW (formerly General Service > 50 kW Customers)
W67: General Service 1,500 to 4,999 kW
W68: General Service Equal To Or Greater Than 1,500 kW
W69: General Service Equal To Or Greater Than 1,500 kW - Interval Metered
W70: General Service Intermediate 1,000 To 4,999 kW
W71: General Service 2,500 to 4,999 kW
W72: General Service 3,000 to 4,999 kW
W73: General Service 3,000 to 4,999 kW - Interval Metered
W74: General Service 3,000 to 4,999 kW - Intermediate Use
W75: General Service 3,000 to 4,999 kW - Time of Use
W76: Intermediate With Self Generation
W77: General Service - Commercial
W78: General Service - Institutional
W79: Farms – Three Phase energy-billed [F3]
W80: Large Use
W81: Large Use - Regular
W82: Large Use > 5000 kW
W83: Large Use - 3TS
W84: Large Use - Ford Annex
W85: Unmetered Scattered Load
W86: Sentinel Lighting
W87: Street Lighting
W88: Embedded Distributor
W89: Low Voltage Wheeling Charge Rate
W90: Stand-By
W91: Standby Power
W92: Standby Power – INTERIM APPROVAL
W93: Standby Power - APPROVED ON AN INTERIM BASIS
W94: Standby - General Service 50 - 1,000 kW
W95: Standby Power General Service 50 to 1,499 kW
W96: Standby - General Service 1,000 - 5,000 kW
W97: Standby Power General Service 1,500 to 4,999 kW
W98: Standby - Large Use
W99: Standby Power General Service Large Use
W100: Standby Distribution Service

Sheet 4. RRR Data
B15: Rate Class | C15: Rate Description | D15: Unit | E15: Rate | F15: Non-Loss Adjusted Metered kWh | G15: Non-Loss Adjusted Metered kW | H15: Applicable Loss Factor eg: (1.0325) | I15: Loss Adjusted Billed kWh
B17: Residential | C17: RTSR - Network | D17: kWh | E17: 0.0071 | F17: 183596949.8 | G17: 0 | H17: 1.0344 | I17: =F17*H17 -> 189912684.9
B18: Residential | C18: RTSR - Connection | D18: kWh | E18: 0.0056 | F18: 183596949.8 | G18: 0 | H18: 1.0344 | I18: =F18*H18 -> 189912684.9
B19: General Service Less Than 50 kW | C19: RTSR - Network | D19: kWh | E19: 0.0063 | F19: 89066220.1 | G19: 0 | H19: 1.0344 | I19: =F19*H19 -> 92130098.07
B20: General Service Less Than 50 kW | C20: RTSR - Connection | D20: kWh | E20: 0.0051 | F20: 89066220.1 | G20: 0 | H20: 1.0344 | I20: =F20*H20 -> 92130098.07
B21: General Service 50 to 4,999 kW | C21: RTSR - Network | D21: kW | E21: 2.7797 | F21: 272266412.7 | G21: 735399.97
B22: General Service 50 to 4,999 kW | C22: RTSR - Connection | D22: kW | E22: 2.2225 | F22: 272226412.7 | G22: 735399.97
B23: Large Use | C23: RTSR - Network | D23: kW | E23: 3.3492 | F23: 151275662.6 | G23: 280183
B24: Large Use | C24: RTSR - Connection | D24: kW | E24: 2.678 | F24: 151275662.6 | G24: 280183
B25: Unmetered Scattered Load | C25: RTSR - Network | D25: kWh | E25: 0.0071 | F25: 1185727.1 | G25: 0 | H25: 1.0344 | I25: =F25*H25 -> 1226516.112
B26: Unmetered Scattered Load | C26: RTSR - Connection | D26: kWh | E26: 0.0056 | F26: 1185727.1 | G26: 0 | H26: 1.0344 | I26: =F26*H26 -> 1226516.112
B27: Street Lighting | C27: RTSR - Network | D27: kW | E27: 2.0078 | F27: 1626159.9 | G27: 4084
B28: Street Lighting | C28: RTSR - Connection | D28: kW | E28: 1.6053 | F28: 1626159.9 | G28: 4084
B29: Standby Power | C29: RTSR - Network | D29: kW
B30: Standby Power | C30: RTSR - Connection | D30: kW

Sheet 5. UTRs and Sub-Transmission
B18: Uniform Transmission Rates | C18: Unit | E18: 2015 | H18: 2016 | J18: 2017
B20: Rate Description | E20: Rate | H20: Rate | J20: Rate
B22: Network Service Rate | C22: kW | E22: 3.78 | H22: 3.66 | J22: 3.66
B24: Line Connection Service Rate | C24: kW | E24: 0.86 | H24: 0.87 | J24: 0.87
B26: Transformation Connection Service Rate | C26: kW | E26: 2 | H26: 2.02 | J26: 2.02
B29: Hydro One Sub-Transmission Rates | C29: Unit | E29: 2015 - 2016 | H29: 2016 | J29: 2017
E30: Jan - April 2015 | F30: May 2015 - Jan 2016 | H30: Feb - Dec 2016
B34: Rate Description | E34: Rate | H34: Rate | J34: Rate
B36: Network Service Rate | C36: kW | E36: 3.23 | F36: 3.4121 | H36: 3.3396 | J36: 3.3396
B38: Line Connection Service Rate | C38: kW | E38: 0.65 | F38: 0.7879 | H38: 0.7791 | J38: 0.7791
B40: Transformation Connection Service Rate | C40: kW | E40: 1.62 | F40: 1.8018 | H40: 1.7713 | J40: 1.7713
B42: Both Line and Transformation Connection Service Rate | C42: kW | E42: =E40+E38 -> 2.27 | F42: =SUM(F40,F38) -> 2.5897 | H42: =SUM(H40,H38) -> 2.5504 | J42: =SUM(J40,J38) -> 2.5504
B45: If needed, add extra host here. (I) | C45: Unit | E45: 2015 | H45: 2016 | J45: 2017
B49: Rate Description | E49: Rate | H49: Rate | J49: Rate
B51: Network Service Rate | C51: kW
B53: Line Connection Service Rate | C53: kW
B55: Transformation Connection Service Rate | C55: kW
B57: Both Line and Transformation Connection Service Rate | C57: kW | E57: =SUM(E53,E55) -> 0 | H57: =SUM(H53,H55) -> 0 | J57: =J55+J53 -> 0
B60: If needed, add extra host here. (II) | C60: Unit | E60: Effective January 1, 2014 | H60: Effective January 1, 2015 | J60: Effective January 1, 2016
B64: Rate Description | E64: Rate | H64: Rate | J64: Rate
B66: Network Service Rate | C66: kW
B68: Line Connection Service Rate | C68: kW
B70: Transformation Connection Service Rate | C70: kW
B72: Both Line and Transformation Connection Service Rate | C72: kW | E72: =SUM(E68,E70) -> 0 | H72: =SUM(H68,H70) -> 0 | J72: =J70+J68 -> 0
E74: Historical 2015 | H74: Current 2016 | J74: Forecast 2017
B75: Low Voltage Switchgear Credit (if applicable, enter as a negative value) | C75: $

Sheet 6. Historical Wholesale
B21: IESO | D21: Network | H21: Line Connection | L21: Transformation Connection | P21: Total Line
B22: Month | D22: Units Billed | E22: Rate | F22: Amount | H22: Units Billed | I22: Rate | J22: Amount | L22: Units Billed | M22: Rate | N22: Amount | P22: Amount
B24: January | D24: 54252 | E24: =IF(D24<>0,F24/D24,0) -> 3.78 | F24: 205072.56 | H24: 46813.4186 | I24: =IF(H24<>0,J24/H24,0) -> 0.86 | J24: 40259.54 | L24: 48606.03 | M24: =IF(L24<>0,N24/L24,0) -> 2 | N24: 97212.06 | P24: =J24+N24 -> 137471.6
B25: February | D25: 54217 | E25: =IF(D25<>0,F25/D25,0) -> 3.78 | F25: 204940.26 | H25: 57391 | I25: =IF(H25<>0,J25/H25,0) -> 0.86 | J25: 49356.26 | L25: 57391 | M25: =IF(L25<>0,N25/L25,0) -> 2 | N25: 114782 | P25: 164138.26
B26: March | D26: 54036 | E26: 3.78 | F26: 204256.08 | H26: 63785 | I26: 0.86 | J26: 54855.1 | L26: 63785 | M26: 2 | N26: 127570 | P26: 182425.1
B27: April | D27: 39120 | E27: 3.78 | F27: 147873.6 | H27: 55395 | I27: 0.86 | J27: 47639.7 | L27: 55395 | M27: 2 | N27: 110790 | P27: 158429.7
B28: May | D28: 53359 | E28: 3.78 | F28: 201697.02 | H28: 46837.26744 | I28: 0.86 | J28: 40280.05 | L28: 46868.415 | M28: 2 | N28: 93736.83 | P28: 134016.88
B29: June | D29: 43870 | E29: 3.78 | F29: 165828.6 | H29: 62090 | I29: 0.86 | J29: 53397.4 | L29: 62090 | M29: 2 | N29: 124180 | P29: 177577.4
B30: July | D30: 41790 | E30: 3.78 | F30: 157966.2 | H30: 51612 | I30: 0.86 | J30: 44386.32 | L30: 51612 | M30: 2 | N30: 103224 | P30: 147610.32
B31: August | D31: 55450 | E31: 3.78 | F31: 209601 | H31: 46298 | I31: 0.86 | J31: 39816.28 | L31: 46298 | M31: 2 | N31: 92596 | P31: 132412.28
B32: September | D32: 56909 | E32: 3.78 | F32: 215116.02 | H32: 65235 | I32: 0.86 | J32: 56102.1 | L32: 65235 | M32: 2 | N32: 130470 | P32: 186572.1
B33: October | D33: 50809 | E33: 3.78 | F33: 192058.02 | H33: 65130 | I33: 0.86 | J33: 56011.8 | L33: 65130 | M33: 2 | N33: 130260 | P33: 186271.8
B34: November | D34: 53943 | E34: 3.78 | F34: 203904.54 | H34: 59775 | I34: 0.86 | J34: 51406.5 | L34: 59775 | M34: 2 | N34: 119550 | P34: 170956.5
B35: December | D35: 50919 | E35: 3.78 | F35: 192473.82 | H35: 53943 | I35: 0.86 | J35: 46390.98 | L35: 53943 | M35: 2 | N35: 107886 | P35: 154276.98
B37: Total | D37: =SUM(D24:D35) -> 608674 | E37: =IF(D37<>0,F37/D37,0) -> 3.78 | F37: =SUM(F24:F35) -> 2300787.72 | H37: =SUM(H24:H35) -> 674304.686 | I37: =IF(H37<>0,J37/H37,0) -> 0.86 | J37: =SUM(J24:J35) -> 579902.03 | L37: =SUM(L24:L35) -> 676128.445 | M37: =IF(L37<>0,N37/L37,0) -> 2 | N37: =SUM(N24:N35) -> 1352256.89 | P37: =SUM(P24:P35) -> 1932158.92
B39: Hydro One | D39: Network | H39: Line Connection | L39: Transformation Connection | P39: Total Line
B41: Month | D41: Units Billed | E41: Rate | F41: Amount | H41: Units Billed | I41: Rate | J41: Amount | L41: Units Billed | M41: Rate | N41: Amount | P41: Amount
B43: January | D43: 79507.63 | E43: =IF(D43<>0,F43/D43,0) -> 3.230000252 | F43: 256809.6649 | H43: 79507.63436 | I43: =IF(H43<>0,J43/H43,0) -> 0.6499999706 | J43: 51679.96 | L43: 79507.63436 | M43: =IF(L43<>0,N43/L43,0) -> 1.620000029 | N43: 128802.37 | P43: =J43+N43 -> 180482.33
B44: February | D44: 68113.11 | E44: =IF(D44<>0,F44/D44,0) -> 3.23 | F44: 220005.3453 | H44: 68113.11 | I44: =IF(H44<>0,J44/H44,0) -> 0.65 | J44: 44273.5215 | L44: 68113.11 | M44: =IF(L44<>0,N44/L44,0) -> 1.62 | N44: 110343.2382 | P44: 154616.7597
B45: March | D45: 66065.71 | E45: 3.230000454 | F45: 213392.2733 | H45: 66065.71441 | I45: 0.6499999567 | J45: 42942.7115 | L45: 66065.71441 | M45: 1.620000043 | N45: 107026.4602 | P45: 149969.1717
B46: April | D46: 67958.47 | E46: 3.301539522 | F46: 224367.5746 | H46: 67958.47 | I46: 0.7041751274 | J46: 47854.66427 | L46: 67958.47 | M46: 1.691421255 | N46: 114946.4006 | P46: 162801.0649
B47: May | D47: 49154.69 | E47: 3.412100203 | F47: 167720.7277 | H47: 49154.69 | I47: 0.7879 | J47: 38728.98025 | L47: 49154.69 | M47: 1.8018 | N47: 88566.92044 | P47: 127295.9007
B48: June | D48: 62409.96 | E48: 3.41209984 | F48: 212949.0145 | H48: 62409.95614 | I48: 0.7878998885 | J48: 49172.79748 | L48: 62409.95614 | M48: 1.801800111 | N48: 112450.2659 | P48: 161623.0634
B49: July | D49: 63036.69 | E49: 3.4121 | F49: 215087.4899 | H49: 63036.68228 | I49: 0.7879000965 | J49: 49666.60805 | L49: 63036.68228 | M49: 1.801799903 | N49: 113579.488 | P49: 163246.0961
B50: August | D50: 64385.49 | E50: 3.4121 | F50: 219689.7304 | H50: 64385.48228 | I50: 0.7878999392 | J50: 50729.31757 | L50: 64385.48228 | M50: 1.801800061 | N50: 116009.7659 | P50: 166739.0835
B51: September | D51: 56552.48 | E51: 3.4121 | F51: 192962.717 | H51: 56552.48386 | I51: 0.787900123 | J51: 44557.70899 | L51: 56552.48386 | M51: 1.801799877 | N51: 101896.2585 | P51: 146453.9675
B52: October | D52: 108567.19 | E52: 3.412100092 | F52: 370442.119 | H52: 108567.1939 | I52: 0.787899972 | J52: 85540.089 | L52: 108567.1939 | M52: 1.801800028 | N52: 195616.3729 | P52: 281156.4619
B53: November | D53: 104251.56 | E53: 3.412099715 | F53: 355716.7182 | H53: 104251.56 | I53: 0.7879 | J53: 82139.80412 | L53: 104251.56 | M53: 1.8018 | N53: 187840.4608 | P53: 269980.2649
B54: December | D54: 67124.72 | E54: 3.412100149 | F54: 229036.2671 | H54: 67124.72386 | I54: 0.7878999547 | J54: 52887.56689 | L54: 67124.72386 | M54: 1.801800045 | N54: 120945.3305 | P54: 173832.8974
B56: Total | D56: =SUM(D43:D54) -> 857127.7 | E56: =IF(D56<>0,F56/D56,0) -> 3.357935629 | F56: =SUM(F43:F54) -> 2878179.642 | H56: =SUM(H43:H54) -> 857127.701 | I56: =IF(H56<>0,J56/H56,0) -> 0.7468825577 | J56: =SUM(J43:J54) -> 640173.7296 | L56: =SUM(L43:L54) -> 857127.701 | M56: =IF(L56<>0,N56/L56,0) -> 1.747724791 | N56: =SUM(N43:N54) -> 1498023.332 | P56: =SUM(P43:P54) -> 2138197.062
B58: Add Extra Host Here (I) | D58: Network | H58: Line Connection | L58: Transformation Connection | P58: Total Line
B59: (if needed)
B60: Month | D60: Units Billed | E60: Rate | F60: Amount | H60: Units Billed | I60: Rate | J60: Amount | L60: Units Billed | M60: Rate | N60: Amount | P60: Amount
B62: January | E62: =IF(D62<>0,F62/D62,0) -> 0 | I62: =IF(H62<>0,J62/H62,0) -> 0 | M62: =IF(L62<>0,N62/L62,0) -> 0 | P62: =J62+N62 -> 0
B63: February | E63: 0 | I63: 0 | M63: 0 | P63: 0
B64: March | E64: 0 | I64: 0 | M64: 0 | P64: 0
B65: April | E65: 0 | I65: 0 | M65: 0 | P65: 0
B66: May | E66: 0 | I66: 0 | M66: 0 | P66: 0
B67: June | E67: 0 | I67: 0 | M67: 0 | P67: 0
B68: July | E68: 0 | I68: 0 | M68: 0 | P68: 0
B69: August | E69: 0 | I69: 0 | M69: 0 | P69: 0
B70: September | E70: 0 | I70: 0 | M70: 0 | P70: 0
B71: October | E71: 0 | I71: 0 | M71: 0 | P71: 0
B72: November | E72: 0 | I72: 0 | M72: 0 | P72: 0
B73: December | E73: 0 | I73: 0 | M73: 0 | P73: 0
B75: Total | D75: =SUM(D62:D73) -> 0 | E75: =IF(D75<>0,F75/D75,0) -> 0 | F75: =SUM(F62:F73) -> 0 | H75: =SUM(H62:H73) -> 0 | I75: =IF(H75<>0,J75/H75,0) -> 0 | J75: =SUM(J62:J73) -> 0 | L75: =SUM(L62:L73) -> 0 | M75: =IF(L75<>0,N75/L75,0) -> 0 | N75: =SUM(N62:N73) -> 0 | P75: =SUM(P62:P73) -> 0
B77: Add Extra Host Here (II) | D77: Network | H77: Line Connection | L77: Transformation Connection | P77: Total Line
B78: (if needed)
B79: Month | D79: Units Billed | E79: Rate | F79: Amount | H79: Units Billed | I79: Rate | J79: Amount | L79: Units Billed | M79: Rate | N79: Amount | P79: Amount
B81: January | E81: =IF(D81<>0,F81/D81,0) -> 0 | I81: =IF(H81<>0,J81/H81,0) -> 0 | M81: =IF(L81<>0,N81/L81,0) -> 0 | P81: =J81+N81 -> 0
B82: February | E82: 0 | I82: 0 | M82: 0 | P82: 0
B83: March | E83: 0 | I83: 0 | M83: 0 | P83: 0
B84: April | E84: 0 | I84: 0 | M84: 0 | P84: 0
B85: May | E85: 0 | I85: 0 | M85: 0 | P85: 0
B86: June | E86: 0 | I86: 0 | M86: 0 | P86: 0
B87: July | E87: 0 | I87: 0 | M87: 0 | P87: 0
B88: August | E88: 0 | I88: 0 | M88: 0 | P88: 0
B89: September | E89: 0 | I89: 0 | M89: 0 | P89: 0
B90: October | E90: 0 | I90: 0 | M90: 0 | P90: 0
B91: November | E91: 0 | I91: 0 | M91: 0 | P91: 0
B92: December | E92: 0 | I92: 0 | M92: 0 | P92: 0
B94: Total | D94: =SUM(D81:D92) -> 0 | E94: =IF(D94<>0,F94/D94,0) -> 0 | F94: =SUM(F81:F92) -> 0 | H94: =SUM(H81:H92) -> 0 | I94: =IF(H94<>0,J94/H94,0) -> 0 | J94: =SUM(J81:J92) -> 0 | L94: =SUM(L81:L92) -> 0 | M94: =IF(L94<>0,N94/L94,0) -> 0 | N94: =SUM(N81:N92) -> 0 | P94: =SUM(P81:P92) -> 0
B96: Total | D96: Network | H96: Line Connection | L96: Transformation Connection | P96: Total Line
B98: Month | D98: Units Billed | E98: Rate | F98: Amount | H98: Units Billed | I98: Rate | J98: Amount | L98: Units Billed | M98: Rate | N98: Amount | P98: Amount
B100: January | D100: =D24+D43+D62+D81 -> 133759.63 | E100: =IF(D100<>0,F100/D100,0) -> 3.453076424 | F100: =F24+F43+F62+F81 -> 461882.2249 | H100: =H24+H43+H62+H81 -> 126321.053 | I100: =IF(H100<>0,J100/H100,0) -> 0.7278240471 | J100: =J24+J43+J62+J81 -> 91939.5 | L100: =L24+L43+L62+L81 -> 128113.6644 | M100: =IF(L100<>0,N100/L100,0) -> 1.764171145 | N100: =N24+N43+N62+N81 -> 226014.43 | P100: =J100+N100 -> 317953.93
B101: February | D101: =D25+D44+D63+D82 -> 122330.11 | E101: 3.473761327 | F101: =F25+F44+F63+F82 -> 424945.6053 | H101: =H25+H44+H63+H82 -> 125504.11 | I101: 0.7460296041 | J101: =J25+J44+J63+J82 -> 93629.7815 | L101: =L25+L44+L63+L82 -> 125504.11 | M101: 1.793767855 | N101: =N25+N44+N63+N82 -> 225125.2382 | P101: 318755.0197
B102: March | D102: 120101.71 | E102: 3.477455511 | F102: 417648.3533 | H102: 129850.7144 | I102: 0.7531557446 | J102: 97797.8115 | L102: 129850.7144 | M102: 1.806662838 | N102: 234596.4602 | P102: 332394.2717
B103: April | D103: 107078.47 | E103: 3.476340058 | F103: 372241.1746 | H103: 123353.47 | I103: 0.7741522332 | J103: 95494.36427 | L103: 123353.47 | M103: 1.829996356 | N103: 225736.4006 | P103: 321230.7649
B104: May | D104: 102513.69 | E104: 3.603594288 | F104: 369417.7477 | H104: 95991.95744 | I104: 0.8230796866 | J104: 79009.03025 | L104: 96023.105 | M104: 1.898540465 | N104: 182303.7504 | P104: 261312.7807
B105: June | D105: 106279.96 | E105: 3.563960831 | F105: 378777.6145 | H105: 124499.9561 | I105: 0.8238572981 | J105: 102570.1975 | L105: 124499.9561 | M105: 1.900645376 | N105: 236630.2659 | P105: 339200.4634
B106: July | D106: 104826.69 | E106: 3.558766283 | F106: 373053.6899 | H106: 114648.6823 | I106: 0.8203576891 | J106: 94052.92805 | L106: 114648.6823 | M106: 1.891024683 | N106: 216803.488 | P106: 310856.4161
B107: August | D107: 119835.49 | E107: 3.582333835 | F107: 429290.7304 | H107: 110683.4823 | I107: 0.8180588079 | J107: 90545.59757 | L107: 110683.4823 | M107: 1.884705483 | N107: 208605.7659 | P107: 299151.3635
B108: September | D108: 113461.48 | E108: 3.59662801 | F108: 408078.737 | H108: 121787.4839 | I108: 0.8265201464 | J108: 100659.809 | L108: 121787.4839 | M108: 1.907965015 | N108: 232366.2585 | P108: 333026.0675
B109: October | D109: 159376.19 | E109: 3.529386284 | F109: 562500.139 | H109: 173697.1939 | I109: 0.8149348061 | J109: 141551.889 | L109: 173697.1939 | M109: 1.87611766 | N109: 325876.3729 | P109: 467428.2619
B110: November | D110: 158194.56 | E110: 3.537550584 | F110: 559621.2582 | H110: 164026.56 | I110: 0.8141748758 | J110: 133546.3041 | L110: 164026.56 | M110: 1.874028577 | N110: 307390.4608 | P110: 440936.7649
B111: December | D111: 118043.72 | E111: 3.570796372 | F111: 421510.0871 | H111: 121067.7239 | I111: 0.8200248896 | J111: 99278.54689 | L111: 121067.7239 | M111: 1.890110123 | N111: 228831.3305 | P111: 328109.8774
B113: Total | D113: =SUM(D100:D111) -> 1465801.7 | E113: =IF(D113<>0,F113/D113,0) -> 3.533197814 | F113: =SUM(F100:F111) -> 5178967.362 | H113: =SUM(H100:H111) -> 1531432.387 | I113: =IF(H113<>0,J113/H113,0) -> 0.7966892759 | J113: =SUM(J100:J111) -> 1220075.76 | L113: =SUM(L100:L111) -> 1533256.146 | M113: =IF(L113<>0,N113/L113,0) -> 1.858971985 | N113: =SUM(N100:N111) -> 2850280.222 | P113: =SUM(P100:P111) -> 4070355.982
N115: Low Voltage Switchgear Credit (if applicable) | P115: ='5. UTRs and Sub-Transmission'!E75 -> 0
N117: Total including deduction for Low Voltage Switchgear Credit | P117: =P113+P115 -> 4070355.982

Sheet 7. Current Wholesale
B13: The purpose of this sheet is to calculate the expected billing when current 2016 Uniform Transmission Rates are applied against historical 2015 transmission units.
B20: IESO | D20: Network | H20: Line Connection | L20: Transformation Connection | P20: Total Line
B22: Month | D22: Units Billed | E22: Rate | F22: Amount | H22: Units Billed | I22: Rate | J22: Amount | L22: Units Billed | M22: Rate | N22: Amount | P22: Amount
B24: January | D24: ='6. Historical Wholesale'!D24 -> 54252 | E24: ='5. UTRs and Sub-Transmission'!H22 -> 3.66 | F24: =D24*E24 -> 198562.32 | H24: ='6. Historical Wholesale'!H24 -> 46813.4186 | I24: ='5. UTRs and Sub-Transmission'!H24 -> 0.87 | J24: =H24*I24 -> 40727.67419 | L24: ='6. Historical Wholesale'!L24 -> 48606.03 | M24: ='5. UTRs and Sub-Transmission'!H26 -> 2.02 | N24: =L24*M24 -> 98184.1806 | P24: =J24+N24 -> 138911.8548
B25: February | D25: ='6. Historical Wholesale'!D25 -> 54217 | E25: =E24 -> 3.66 | F25: =D25*E25 -> 198434.22 | H25: ='6. Historical Wholesale'!H25 -> 57391 | I25: =I24 -> 0.87 | J25: =H25*I25 -> 49930.17 | L25: ='6. Historical Wholesale'!L25 -> 57391 | M25: =M24 -> 2.02 | N25: =L25*M25 -> 115929.82 | P25: 165859.99
B26: March | D26: ='6. Historical Wholesale'!D26 -> 54036 | E26: =E25 -> 3.66 | F26: 197771.76 | H26: ='6. Historical Wholesale'!H26 -> 63785 | I26: =I25 -> 0.87 | J26: 55492.95 | L26: ='6. Historical Wholesale'!L26 -> 63785 | M26: =M25 -> 2.02 | N26: 128845.7 | P26: 184338.65
B27: April | D27: ='6. Historical Wholesale'!D27 -> 39120 | E27: 3.66 | F27: 143179.2 | H27: ='6. Historical Wholesale'!H27 -> 55395 | I27: 0.87 | J27: 48193.65 | L27: ='6. Historical Wholesale'!L27 -> 55395 | M27: 2.02 | N27: 111897.9 | P27: 160091.55
B28: May | D28: ='6. Historical Wholesale'!D28 -> 53359 | E28: 3.66 | F28: 195293.94 | H28: ='6. Historical Wholesale'!H28 -> 46837.26744 | I28: 0.87 | J28: 40748.42267 | L28: ='6. Historical Wholesale'!L28 -> 46868.415 | M28: 2.02 | N28: 94674.1983 | P28: 135422.621
B29: June | D29: ='6. Historical Wholesale'!D29 -> 43870 | E29: 3.66 | F29: 160564.2 | H29: ='6. Historical Wholesale'!H29 -> 62090 | I29: 0.87 | J29: 54018.3 | L29: ='6. Historical Wholesale'!L29 -> 62090 | M29: 2.02 | N29: 125421.8 | P29: 179440.1
B30: July | D30: ='6. Historical Wholesale'!D30 -> 41790 | E30: 3.66 | F30: 152951.4 | H30: ='6. Historical Wholesale'!H30 -> 51612 | I30: 0.87 | J30: 44902.44 | L30: ='6. Historical Wholesale'!L30 -> 51612 | M30: 2.02 | N30: 104256.24 | P30: 149158.68
B31: August | D31: ='6. Historical Wholesale'!D31 -> 55450 | E31: 3.66 | F31: 202947 | H31: ='6. Historical Wholesale'!H31 -> 46298 | I31: 0.87 | J31: 40279.26 | L31: ='6. Historical Wholesale'!L31 -> 46298 | M31: 2.02 | N31: 93521.96 | P31: 133801.22
B32: September | D32: ='6. Historical Wholesale'!D32 -> 56909 | E32: 3.66 | F32: 208286.94 | H32: ='6. Historical Wholesale'!H32 -> 65235 | I32: 0.87 | J32: 56754.45 | L32: ='6. Historical Wholesale'!L32 -> 65235 | M32: 2.02 | N32: 131774.7 | P32: 188529.15
B33: October | D33: ='6. Historical Wholesale'!D33 -> 50809 | E33: 3.66 | F33: 185960.94 | H33: ='6. Historical Wholesale'!H33 -> 65130 | I33: 0.87 | J33: 56663.1 | L33: ='6. Historical Wholesale'!L33 -> 65130 | M33: 2.02 | N33: 131562.6 | P33: 188225.7
B34: November | D34: ='6. Historical Wholesale'!D34 -> 53943 | E34: 3.66 | F34: 197431.38 | H34: ='6. Historical Wholesale'!H34 -> 59775 | I34: 0.87 | J34: 52004.25 | L34: ='6. Historical Wholesale'!L34 -> 59775 | M34: 2.02 | N34: 120745.5 | P34: 172749.75
B35: December | D35: ='6. Historical Wholesale'!D35 -> 50919 | E35: 3.66 | F35: 186363.54 | H35: ='6. Historical Wholesale'!H35 -> 53943 | I35: 0.87 | J35: 46930.41 | L35: ='6. Historical Wholesale'!L35 -> 53943 | M35: 2.02 | N35: 108964.86 | P35: 155895.27
B37: Total | D37: =SUM(D24:D35) -> 608674 | E37: =IF(D37<>0,F37/D37,0) -> 3.66 | F37: =SUM(F24:F35) -> 2227746.84 | H37: =SUM(H24:H35) -> 674304.686 | I37: =IF(H37<>0,J37/H37,0) -> 0.87 | J37: =SUM(J24:J35) -> 586645.0769 | L37: =SUM(L24:L35) -> 676128.445 | M37: =IF(L37<>0,N37/L37,0) -> 2.02 | N37: =SUM(N24:N35) -> 1365779.459 | P37: =SUM(P24:P35) -> 1952424.536
B39: Hydro One | D39: Network | H39: Line Connection | L39: Transformation Connection | P39: Total Line
B41: Month | D41: Units Billed | E41: Rate | F41: Amount | H41: Units Billed | I41: Rate | J41: Amount | L41: Units Billed | M41: Rate | N41: Amount | P41: Amount
B43: January | D43: ='6. Historical Wholesale'!D43 -> 79507.63 | E43: ='5. UTRs and Sub-Transmission'!$F$36 -> 3.4121 | F43: =D43*E43 -> 271287.9843 | H43: ='6. Historical Wholesale'!H43 -> 79507.63436 | I43: ='5. UTRs and Sub-Transmission'!F38 -> 0.7879 | J43: =H43*I43 -> 62644.06511 | L43: ='6. Historical Wholesale'!L43 -> 79507.63436 | M43: ='5. UTRs and Sub-Transmission'!F40 -> 1.8018 | N43: =L43*M43 -> 143256.8556 | P43: =J43+N43 -> 205900.9207
B44: February | D44: ='6. Historical Wholesale'!D44 -> 68113.11 | E44: ='5. UTRs and Sub-Transmission'!H36 -> 3.3396 | F44: =D44*E44 -> 227470.5422 | H44: ='6. Historical Wholesale'!H44 -> 68113.11 | I44: ='5. UTRs and Sub-Transmission'!H38 -> 0.7791 | J44: =H44*I44 -> 53066.924 | L44: ='6. Historical Wholesale'!L44 -> 68113.11 | M44: ='5. UTRs and Sub-Transmission'!H40 -> 1.7713 | N44: =L44*M44 -> 120648.7517 | P44: 173715.6757
B45: March | D45: ='6. Historical Wholesale'!D45 -> 66065.71 | E45: =E44 -> 3.3396 | F45: 220633.0451 | H45: ='6. Historical Wholesale'!H45 -> 66065.71441 | I45: =I44 -> 0.7791 | J45: 51471.79809 | L45: ='6. Historical Wholesale'!L45 -> 66065.71441 | M45: =M44 -> 1.7713 | N45: 117022.1999 | P45: 168493.998
B46: April | D46: ='6. Historical Wholesale'!D46 -> 67958.47 | E46: 3.3396 | F46: 226954.1064 | H46: ='6. Historical Wholesale'!H46 -> 67958.47 | I46: 0.7791 | J46: 52946.44398 | L46: ='6. Historical Wholesale'!L46 -> 67958.47 | M46: =M45 -> 1.7713 | N46: 120374.8379 | P46: 173321.2819
B47: May | D47: ='6. Historical Wholesale'!D47 -> 49154.69 | E47: 3.3396 | F47: 164157.0027 | H47: ='6. Historical Wholesale'!H47 -> 49154.69 | I47: 0.7791 | J47: 38296.41898 | L47: ='6. Historical Wholesale'!L47 -> 49154.69 | M47: 1.7713 | N47: 87067.7024 | P47: 125364.1214
B48: June | D48: ='6. Historical Wholesale'!D48 -> 62409.96 | E48: 3.3396 | F48: 208424.3024 | H48: ='6. Historical Wholesale'!H48 -> 62409.95614 | I48: 0.7791 | J48: 48623.59683 | L48: ='6. Historical Wholesale'!L48 -> 62409.95614 | M48: 1.7713 | N48: 110546.7553 | P48: 159170.3521
B49: July | D49: ='6. Historical Wholesale'!D49 -> 63036.69 | E49: 3.3396 | F49: 210517.3299 | H49: ='6. Historical Wholesale'!H49 -> 63036.68228 | I49: 0.7791 | J49: 49111.87916 | L49: ='6. Historical Wholesale'!L49 -> 63036.68228 | M49: 1.7713 | N49: 111656.8753 | P49: 160768.7545
B50: August | D50: ='6. Historical Wholesale'!D50 -> 64385.49 | E50: 3.3396 | F50: 215021.7824 | H50: ='6. Historical Wholesale'!H50 -> 64385.48228 | I50: 0.7791 | J50: 50162.72924 | L50: ='6. Historical Wholesale'!L50 -> 64385.48228 | M50: 1.7713 | N50: 114046.0048 | P50: 164208.734
B51: September | D51: ='6. Historical Wholesale'!D51 -> 56552.48 | E51: 3.3396 | F51: 188862.6622 | H51: ='6. Historical Wholesale'!H51 -> 56552.48386 | I51: 0.7791 | J51: 44060.04018 | L51: ='6. Historical Wholesale'!L51 -> 56552.48386 | M51: 1.7713 | N51: 100171.4147 | P51: 144231.4548
B52: October | D52: ='6. Historical Wholesale'!D52 -> 108567.19 | E52: 3.3396 | F52: 362570.9877 | H52: ='6. Historical Wholesale'!H52 -> 108567.1939 | I52: 0.7791 | J52: 84584.70074 | L52: ='6. Historical Wholesale'!L52 -> 108567.1939 | M52: 1.7713 | N52: 192305.0705 | P52: 276889.7712
B53: November | D53: ='6. Historical Wholesale'!D53 -> 104251.56 | E53: 3.3396 | F53: 348158.5098 | H53: ='6. Historical Wholesale'!H53 -> 104251.56 | I53: 0.7791 | J53: 81222.3904 | L53: ='6. Historical Wholesale'!L53 -> 104251.56 | M53: 1.7713 | N53: 184660.7882 | P53: 265883.1786
B54: December | D54: ='6. Historical Wholesale'!D54 -> 67124.72 | E54: 3.3396 | F54: 224169.7149 | H54: ='6. Historical Wholesale'!H54 -> 67124.72386 | I54: 0.7791 | J54: 52296.87236 | L54: ='6. Historical Wholesale'!L54 -> 67124.72386 | M54: 1.7713 | N54: 118898.0234 | P54: 171194.8957
B56: Total | D56: =SUM(D43:D54) -> 857127.7 | E56: =IF(D56<>0,F56/D56,0) -> 3.346325139 | F56: =SUM(F43:F54) -> 2868227.97 | H56: =SUM(H43:H54) -> 857127.701 | I56: =IF(H56<>0,J56/H56,0) -> 0.7799162928 | J56: =SUM(J43:J54) -> 668487.8591 | L56: =SUM(L43:L54) -> 857127.701 | M56: =IF(L56<>0,N56/L56,0) -> 1.774129197 | N56: =SUM(N43:N54) -> 1520655.28 | P56: =SUM(P43:P54) -> 2189143.139
B58: ='6. Historical Wholesale'!B58 -> Add Extra Host Here (I) | D58: Network | H58: Line Connection | L58: Transformation Connection | P58: Total Line
B60: Month | D60: Units Billed | E60: Rate | F60: Amount | H60: Units Billed | I60: Rate | J60: Amount | L60: Units Billed | M60: Rate | N60: Amount | P60: Amount
B62: January | D62: ='6. Historical Wholesale'!D62 -> 0 | E62: ='5. UTRs and Sub-Transmission'!H51 -> 0 | F62: =D62*E62 -> 0 | H62: ='6. Historical Wholesale'!H62 -> 0 | I62: ='5. UTRs and Sub-Transmission'!H53 -> 0 | J62: =H62*I62 -> 0 | L62: ='6. Historical Wholesale'!L62 -> 0 | M62: ='5. UTRs and Sub-Transmission'!H55 -> 0 | N62: =L62*M62 -> 0 | P62: =J62+N62 -> 0
B63: February | D63: ='6. Historical Wholesale'!D63 -> 0 | E63: =E62 -> 0 | F63: =D63*E63 -> 0 | H63: ='6. Historical Wholesale'!H63 -> 0 | I63: =I62 -> 0 | J63: =H63*I63 -> 0 | L63: ='6. Historical Wholesale'!L63 -> 0 | M63: =M62 -> 0 | N63: =L63*M63 -> 0 | P63: 0
B64: March | D64: ='6. Historical Wholesale'!D64 -> 0 | E64: =E63 -> 0 | F64: 0 | H64: ='6. Historical Wholesale'!H64 -> 0 | I64: =I63 -> 0 | J64: 0 | L64: ='6. Historical Wholesale'!L64 -> 0 | M64: =M63 -> 0 | N64: 0 | P64: 0
B65: April | D65: ='6. Historical Wholesale'!D65 -> 0 | E65: 0 | F65: 0 | H65: ='6. Historical Wholesale'!H65 -> 0 | I65: 0 | J65: 0 | L65: ='6. Historical Wholesale'!L65 -> 0 | M65: =M64 -> 0 | N65: 0 | P65: 0
B66: May | D66: ='6. Historical Wholesale'!D66 -> 0 | E66: 0 | F66: 0 | H66: ='6. Historical Wholesale'!H66 -> 0 | I66: 0 | J66: 0 | L66: ='6. Historical Wholesale'!L66 -> 0 | M66: 0 | N66: 0 | P66: 0
B67: June | D67: ='6. Historical Wholesale'!D67 -> 0 | E67: 0 | F67: 0 | H67: ='6. Historical Wholesale'!H67 -> 0 | I67: 0 | J67: 0 | L67: ='6. Historical Wholesale'!L67 -> 0 | M67: 0 | N67: 0 | P67: 0
B68: July | D68: ='6. Historical Wholesale'!D68 -> 0 | E68: 0 | F68: 0 | H68: ='6. Historical Wholesale'!H68 -> 0 | I68: 0 | J68: 0 | L68: ='6. Historical Wholesale'!L68 -> 0 | M68: 0 | N68: 0 | P68: 0
B69: August | D69: ='6. Historical Wholesale'!D69 -> 0 | E69: 0 | F69: 0 | H69: ='6. Historical Wholesale'!H69 -> 0 | I69: 0 | J69: 0 | L69: ='6. Historical Wholesale'!L69 -> 0 | M69: 0 | N69: 0 | P69: 0
B70: September | D70: ='6. Historical Wholesale'!D70 -> 0 | E70: 0 | F70: 0 | H70: ='6. Historical Wholesale'!H70 -> 0 | I70: 0 | J70: 0 | L70: ='6. Historical Wholesale'!L70 -> 0 | M70: 0 | N70: 0 | P70: 0
B71: October | D71: ='6. Historical Wholesale'!D71 -> 0 | E71: 0 | F71: 0 | H71: ='6. Historical Wholesale'!H71 -> 0 | I71: 0 | J71: 0 | L71: ='6. Historical Wholesale'!L71 -> 0 | M71: 0 | N71: 0 | P71: 0
B72: November | D72: ='6. Historical Wholesale'!D72 -> 0 | E72: 0 | F72: 0 | H72: ='6. Historical Wholesale'!H72 -> 0 | I72: 0 | J72: 0 | L72: ='6. Historical Wholesale'!L72 -> 0 | M72: 0 | N72: 0 | P72: 0
B73: December | D73: ='6. Historical Wholesale'!D73 -> 0 | E73: 0 | F73: 0 | H73: ='6. Historical Wholesale'!H73 -> 0 | I73: 0 | J73: 0 | L73: ='6. Historical Wholesale'!L73 -> 0 | M73: 0 | N73: 0 | P73: 0
B75: Total | D75: =SUM(D62:D73) -> 0 | E75: =IF(D75<>0,F75/D75,0) -> 0 | F75: =SUM(F62:F73) -> 0 | H75: =SUM(H62:H73) -> 0 | I75: =IF(H75<>0,J75/H75,0) -> 0 | J75: =SUM(J62:J73) -> 0 | L75: =SUM(L62:L73) -> 0 | M75: =IF(L75<>0,N75/L75,0) -> 0 | N75: =SUM(N62:N73) -> 0 | P75: =SUM(P62:P73) -> 0
B77: ='6. Historical Wholesale'!B77 -> Add Extra Host Here (II) | D77: Network | H77: Line Connection | L77: Transformation Connection | P77: Total Line
B79: Month | D79: Units Billed | E79: Rate | F79: Amount | H79: Units Billed | I79: Rate | J79: Amount | L79: Units Billed | M79: Rate | N79: Amount | P79: Amount
B81: January | D81: ='6. Historical Wholesale'!D81 -> 0 | E81: ='5. UTRs and Sub-Transmission'!H66 -> 0 | F81: =D81*E81 -> 0 | H81: ='6. Historical Wholesale'!H81 -> 0 | I81: ='5. UTRs and Sub-Transmission'!H68 -> 0 | J81: =H81*I81 -> 0 | L81: ='6. Historical Wholesale'!L81 -> 0 | M81: ='5. UTRs and Sub-Transmission'!H70 -> 0 | N81: =L81*M81 -> 0 | P81: =J81+N81 -> 0
B82: February | D82: ='6. Historical Wholesale'!D82 -> 0 | E82: =E81 -> 0 | F82: =D82*E82 -> 0 | H82: ='6. Historical Wholesale'!H82 -> 0 | I82: =I81 -> 0 | J82: =H82*I82 -> 0 | L82: ='6. Historical Wholesale'!L82 -> 0 | M82: =M81 -> 0 | N82: =L82*M82 -> 0 | P82: 0
B83: March | D83: ='6. Historical Wholesale'!D83 -> 0 | E83: =E82 -> 0 | F83: 0 | H83: ='6. Historical Wholesale'!H83 -> 0 | I83: =I82 -> 0 | J83: 0 | L83: ='6. Historical Wholesale'!L83 -> 0 | M83: =M82 -> 0 | N83: 0 | P83: 0
B84: April | D84: ='6. Historical Wholesale'!D84 -> 0 | E84: 0 | F84: 0 | H84: ='6. Historical Wholesale'!H84 -> 0 | I84: 0 | J84: 0 | L84: ='6. Historical Wholesale'!L84 -> 0 | M84: =M83 -> 0 | N84: 0 | P84: 0
B85: May | D85: ='6. Historical Wholesale'!D85 -> 0 | E85: 0 | F85: 0 | H85: ='6. Historical Wholesale'!H85 -> 0 | I85: 0 | J85: 0 | L85: ='6. Historical Wholesale'!L85 -> 0 | M85: 0 | N85: 0 | P85: 0
B86: June | D86: ='6. Historical Wholesale'!D86 -> 0 | E86: 0 | F86: 0 | H86: ='6. Historical Wholesale'!H86 -> 0 | I86: 0 | J86: 0 | L86: ='6. Historical Wholesale'!L86 -> 0 | M86: 0 | N86: 0 | P86: 0
B87: July | D87: ='6. Historical Wholesale'!D87 -> 0 | E87: 0 | F87: 0 | H87: ='6. Historical Wholesale'!H87 -> 0 | I87: 0 | J87: 0 | L87: ='6. Historical Wholesale'!L87 -> 0 | M87: 0 | N87: 0 | P87: 0
B88: August | D88: ='6. Historical Wholesale'!D88 -> 0 | E88: 0 | F88: 0 | H88: ='6. Historical Wholesale'!H88 -> 0 | I88: 0 | J88: 0 | L88: ='6. Historical Wholesale'!L88 -> 0 | M88: 0 | N88: 0 | P88: 0
B89: September | D89: ='6. Historical Wholesale'!D89 -> 0 | E89: 0 | F89: 0 | H89: ='6. Historical Wholesale'!H89 -> 0 | I89: 0 | J89: 0 | L89: ='6. Historical Wholesale'!L89 -> 0 | M89: 0 | N89: 0 | P89: 0
B90: October | D90: ='6. Historical Wholesale'!D90 -> 0 | E90: 0 | F90: 0 | H90: ='6. Historical Wholesale'!H90 -> 0 | I90: 0 | J90: 0 | L90: ='6. Historical Wholesale'!L90 -> 0 | M90: 0 | N90: 0 | P90: 0
B91: November | D91: ='6. Historical Wholesale'!D91 -> 0 | E91: 0 | F91: 0 | H91: ='6. Historical Wholesale'!H91 -> 0 | I91: 0 | J91: 0 | L91: ='6. Historical Wholesale'!L91 -> 0 | M91: 0 | N91: 0 | P91: 0
B92: December | D92: ='6. Historical Wholesale'!D92 -> 0 | E92: 0 | F92: 0 | H92: ='6. Historical Wholesale'!H92 -> 0 | I92: 0 | J92: 0 | L92: ='6. Historical Wholesale'!L92 -> 0 | M92: 0 | N92: 0 | P92: 0
B94: Total | D94: =SUM(D81:D92) -> 0 | E94: =IF(D94<>0,F94/D94,0) -> 0 | F94: =SUM(F81:F92) -> 0 | H94: =SUM(H81:H92) -> 0 | I94: =IF(H94<>0,J94/H94,0) -> 0 | J94: =SUM(J81:J92) -> 0 | L94: =SUM(L81:L92) -> 0 | M94: =IF(L94<>0,N94/L94,0) -> 0 | N94: =SUM(N81:N92) -> 0 | P94: =SUM(P81:P92) -> 0
B96: Total | D96: Network | H96: Line Connection | L96: Transformation Connection | P96: Total Line
B98: Month | D98: Units Billed | E98: Rate | F98: Amount | H98: Units Billed | I98: Rate | J98: Amount | L98: Units Billed | M98: Rate | N98: Amount | P98: Amount
B100: January | D100: =D24+D43+D62+D81 -> 133759.63 | E100: =IF(D100<>0,F100/D100,0) -> 3.512646561 | F100: =F24+F43+F62+F81 -> 469850.3043 | H100: =H24+H43+H62+H81 -> 126321.053 | I100: =IF(H100<>0,J100/H100,0) -> 0.8183255037 | J100: =J24+J43+J62+J81 -> 103371.7393 | L100: =L24+L43+L62+L81 -> 128113.6644 | M100: =IF(L100<>0,N100/L100,0) -> 1.884584579 | N100: =N24+N43+N62+N81 -> 241441.0362 | P100: =J100+N100 -> 344812.7755
B101: February | D101: =D25+D44+D63+D82 -> 122330.11 | E101: 3.481602053 | F101: =F25+F44+F63+F82 -> 425904.7622 | H101: =H25+H44+H63+H82 -> 125504.11 | I101: 0.8206671001 | J101: =J25+J44+J63+J82 -> 102997.094 | L101: =L25+L44+L63+L82 -> 125504.11 | M101: 1.885026488 | N101: =N25+N44+N63+N82 -> 236578.5717 | P101: 339575.6657
B102: March | D102: 120101.71 | E102: 3.483753938 | F102: 418404.8051 | H102: 129850.7144 | I102: 0.8237517104 | J102: 106964.7481 | L102: 129850.7144 | M102: 1.893465901 | N102: 245867.8999 | P102: 352832.648
B103: April | D103: 107078.47 | E103: 3.456654792 | F103: 370133.3064 | H103: 123353.47 | I103: 0.8199209473 | J103: 101140.094 | L103: 123353.47 | M103: 1.882985034 | N103: 232272.7379 | P103: 333412.8319
B104: May | D104: 102513.69 | E104: 3.506370151 | F104: 359450.9427 | H104: 95991.95744 | I104: 0.8234527533 | J104: 79044.84165 | L104: 96023.105 | M104: 1.892689272 | N104: 181741.9007 | P104: 260786.7424
B105: June | D105: 106279.96 | E105: 3.471853983 | F105: 368988.5024 | H105: 124499.9561 | I105: 0.8244331967 | J105: 102641.8968 | L105: 124499.9561 | M105: 1.895330429 | N105: 235968.5553 | P105: 338610.4521
B106: July | D106: 104826.69 | E106: 3.467330028 | F106: 363468.7299 | H106: 114648.6823 | I106: 0.8200209309 | J106: 94014.31916 | L106: 114648.6823 | M106: 1.883258586 | N106: 215913.1153 | P106: 309927.4345
B107: August | D107: 119835.49 | E107: 3.487854745 | F107: 417968.7824 | H107: 110683.4823 | I107: 0.8171227303 | J107: 90441.98924 | L107: 110683.4823 | M107: 1.875329186 | N107: 207567.9648 | P107: 298009.954
B108: September | D108: 113461.48 | E108: 3.500303382 | F108: 397149.6022 | H108: 121787.4839 | I108: 0.8277902374 | J108: 100814.4902 | L108: 121787.4839 | M108: 1.904515204 | N108: 231946.1147 | P108: 332760.6048
B109: October | D109: 159376.19 | E109: 3.44174326 | F109: 548531.9277 | H109: 173697.1939 | I109: 0.8131841258 | J109: 141247.8007 | L109: 173697.1939 | M109: 1.864553268 | N109: 323867.6705 | P109: 465115.4712
B110: November | D110: 158194.56 | E110: 3.448853676 | F110: 545589.8898 | H110: 164026.56 | I110: 0.8122260224 | J110: 133226.6404 | L110: 164026.56 | M110: 1.861931923 | N110: 305406.2882 | P110: 438632.9286
B111: December | D111: 118043.72 | E111: 3.477806824 | F111: 410533.2549 | H111: 121067.7239 | I111: 0.8196014528 | J111: 99227.28236 | L111: 121067.7239 | M111: 1.882110905 | N111: 227862.8834 | P111: 327090.1657
B113: Total | D113: =SUM(D100:D111) -> 1465801.7 | E113: =IF(D113<>0,F113/D113,0) -> 3.476578592 | F113: =SUM(F100:F111) -> 5095974.81 | H113: =SUM(H100:H111) -> 1531432.387 | I113: =IF(H113<>0,J113/H113,0) -> 0.8195810318 | J113: =SUM(J100:J111) -> 1255132.936 | L113: =SUM(L100:L111) -> 1533256.146 | M113: =IF(L113<>0,N113/L113,0) -> 1.882552205 | N113: =SUM(N100:N111) -> 2886434.739 | P113: =SUM(P100:P111) -> 4141567.675
N115: Low Voltage Switchgear Credit (if applicable) | P115: ='5. UTRs and Sub-Transmission'!H75 -> 0
N117: Total including deduction for Low Voltage Switchgear Credit | P117: =P113+P115 -> 4141567.675

Sheet 8. Forecast Wholesale
B13: The purpose of this sheet is to calculate the expected billing when forecasted 2017 Uniform Transmission Rates are applied against historical 2015 transmission units.
B20: IESO | D20: Network | H20: Line Connection | L20: Transformation Connection | P20: Total Line
B22: Month | D22: Units Billed | E22: Rate | F22: Amount | H22: Units Billed | I22: Rate | J22: Amount | L22: Units Billed | M22: Rate | N22: Amount | P22: Amount
B24: January | D24: ='6. Historical Wholesale'!D24 -> 54252 | E24: ='5. UTRs and Sub-Transmission'!J22 -> 3.66 | F24: =D24*E24 -> 198562.32 | H24: ='6. Historical Wholesale'!H24 -> 46813.4186 | I24: ='5. UTRs and Sub-Transmission'!J24 -> 0.87 | J24: =H24*I24 -> 40727.67419 | L24: ='6. Historical Wholesale'!L24 -> 48606.03 | M24: ='5. UTRs and Sub-Transmission'!J26 -> 2.02 | N24: =L24*M24 -> 98184.1806 | P24: =J24+N24 -> 138911.8548
B25: February | D25: ='6. Historical Wholesale'!D25 -> 54217 | E25: =E24 -> 3.66 | F25: 198434.22 | H25: ='6. Historical Wholesale'!H25 -> 57391 | I25: =I24 -> 0.87 | J25: 49930.17 | L25: ='6. Historical Wholesale'!L25 -> 57391 | M25: =M24 -> 2.02 | N25: 115929.82 | P25: 165859.99
B26: March | D26: ='6. Historical Wholesale'!D26 -> 54036 | E26: 3.66 | F26: 197771.76 | H26: ='6. Historical Wholesale'!H26 -> 63785 | I26: 0.87 | J26: 55492.95 | L26: ='6. Historical Wholesale'!L26 -> 63785 | M26: 2.02 | N26: 128845.7 | P26: 184338.65
B27: April | D27: ='6. Historical Wholesale'!D27 -> 39120 | E27: 3.66 | F27: 143179.2 | H27: ='6. Historical Wholesale'!H27 -> 55395 | I27: 0.87 | J27: 48193.65 | L27: ='6. Historical Wholesale'!L27 -> 55395 | M27: 2.02 | N27: 111897.9 | P27: 160091.55
B28: May | D28: ='6. Historical Wholesale'!D28 -> 53359 | E28: 3.66 | F28: 195293.94 | H28: ='6. Historical Wholesale'!H28 -> 46837.26744 | I28: 0.87 | J28: 40748.42267 | L28: ='6. Historical Wholesale'!L28 -> 46868.415 | M28: 2.02 | N28: 94674.1983 | P28: 135422.621
B29: June | D29: ='6. Historical Wholesale'!D29 -> 43870 | E29: 3.66 | F29: 160564.2 | H29: ='6. Historical Wholesale'!H29 -> 62090 | I29: 0.87 | J29: 54018.3 | L29: ='6. Historical Wholesale'!L29 -> 62090 | M29: 2.02 | N29: 125421.8 | P29: 179440.1
B30: July | D30: ='6. Historical Wholesale'!D30 -> 41790 | E30: 3.66 | F30: 152951.4 | H30: ='6. Historical Wholesale'!H30 -> 51612 | I30: 0.87 | J30: 44902.44 | L30: ='6. Historical Wholesale'!L30 -> 51612 | M30: 2.02 | N30: 104256.24 | P30: 149158.68
B31: August | D31: ='6. Historical Wholesale'!D31 -> 55450 | E31: 3.66 | F31: 202947 | H31: ='6. Historical Wholesale'!H31 -> 46298 | I31: 0.87 | J31: 40279.26 | L31: ='6. Historical Wholesale'!L31 -> 46298 | M31: 2.02 | N31: 93521.96 | P31: 133801.22
B32: September | D32: ='6. Historical Wholesale'!D32 -> 56909 | E32: 3.66 | F32: 208286.94 | H32: ='6. Historical Wholesale'!H32 -> 65235 | I32: 0.87 | J32: 56754.45 | L32: ='6. Historical Wholesale'!L32 -> 65235 | M32: 2.02 | N32: 131774.7 | P32: 188529.15
B33: October | D33: ='6. Historical Wholesale'!D33 -> 50809 | E33: 3.66 | F33: 185960.94 | H33: ='6. Historical Wholesale'!H33 -> 65130 | I33: 0.87 | J33: 56663.1 | L33: ='6. Historical Wholesale'!L33 -> 65130 | M33: 2.02 | N33: 131562.6 | P33: 188225.7
B34: November | D34: ='6. Historical Wholesale'!D34 -> 53943 | E34: 3.66 | F34: 197431.38 | H34: ='6. Historical Wholesale'!H34 -> 59775 | I34: 0.87 | J34: 52004.25 | L34: ='6. Historical Wholesale'!L34 -> 59775 | M34: 2.02 | N34: 120745.5 | P34: 172749.75
B35: December | D35: ='6. Historical Wholesale'!D35 -> 50919 | E35: 3.66 | F35: 186363.54 | H35: ='6. Historical Wholesale'!H35 -> 53943 | I35: 0.87 | J35: 46930.41 | L35: ='6. Historical Wholesale'!L35 -> 53943 | M35: 2.02 | N35: 108964.86 | P35: 155895.27
B37: Total | D37: =SUM(D24:D35) -> 608674 | E37: =IF(D37<>0,F37/D37,0) -> 3.66 | F37: =SUM(F24:F35) -> 2227746.84 | H37: =SUM(H24:H35) -> 674304.686 | I37: =IF(H37<>0,J37/H37,0) -> 0.87 | J37: =SUM(J24:J35) -> 586645.0769 | L37: =SUM(L24:L35) -> 676128.445 | M37: =IF(L37<>0,N37/L37,0) -> 2.02 | N37: =SUM(N24:N35) -> 1365779.459 | P37: =SUM(P24:P35) -> 1952424.536
B39: Hydro One | D39: Network | H39: Line Connection | L39: Transformation Connection | P39: Total Line
B41: Month | D41: Units Billed | E41: Rate | F41: Amount | H41: Units Billed | I41: Rate | J41: Amount | L41: Units Billed | M41: Rate | N41: Amount | P41: Amount
B43: January | D43: ='6. Historical Wholesale'!D43 -> 79507.63 | E43: ='5. UTRs and Sub-Transmission'!J36 -> 3.3396 | F43: =D43*E43 -> 265523.6811 | H43: ='6. Historical Wholesale'!H43 -> 79507.63436 | I43: ='5. UTRs and Sub-Transmission'!J38 -> 0.7791 | J43: =H43*I43 -> 61944.39793 | L43: ='6. Historical Wholesale'!L43 -> 79507.63436 | M43: ='5. UTRs and Sub-Transmission'!J40 -> 1.7713 | N43: =L43*M43 -> 140831.8727 | P43: =J43+N43 -> 202776.2707
B44: February | D44: ='6. Historical Wholesale'!D44 -> 68113.11 | E44: =E43 -> 3.3396 | F44: 227470.5422 | H44: ='6. Historical Wholesale'!H44 -> 68113.11 | I44: =I43 -> 0.7791 | J44: 53066.924 | L44: ='6. Historical Wholesale'!L44 -> 68113.11 | M44: =M43 -> 1.7713 | N44: 120648.7517 | P44: 173715.6757
B45: March | D45: ='6. Historical Wholesale'!D45 -> 66065.71 | E45: 3.3396 | F45: 220633.0451 | H45: ='6. Historical Wholesale'!H45 -> 66065.71441 | I45: 0.7791 | J45: 51471.79809 | L45: ='6. Historical Wholesale'!L45 -> 66065.71441 | M45: 1.7713 | N45: 117022.1999 | P45: 168493.998
B46: April | D46: ='6. Historical Wholesale'!D46 -> 67958.47 | E46: 3.3396 | F46: 226954.1064 | H46: ='6. Historical Wholesale'!H46 -> 67958.47 | I46: 0.7791 | J46: 52946.44398 | L46: ='6. Historical Wholesale'!L46 -> 67958.47 | M46: 1.7713 | N46: 120374.8379 | P46: 173321.2819
B47: May | D47: ='6. Historical Wholesale'!D47 -> 49154.69 | E47: 3.3396 | F47: 164157.0027 | H47: ='6. Historical Wholesale'!H47 -> 49154.69 | I47: 0.7791 | J47: 38296.41898 | L47: ='6. Historical Wholesale'!L47 -> 49154.69 | M47: 1.7713 | N47: 87067.7024 | P47: 125364.1214
B48: June | D48: ='6. Historical Wholesale'!D48 -> 62409.96 | E48: 3.3396 | F48: 208424.3024 | H48: ='6. Historical Wholesale'!H48 -> 62409.95614 | I48: 0.7791 | J48: 48623.59683 | L48: ='6. Historical Wholesale'!L48 -> 62409.95614 | M48: 1.7713 | N48: 110546.7553 | P48: 159170.3521
B49: July | D49: ='6. Historical Wholesale'!D49 -> 63036.69 | E49: 3.3396 | F49: 210517.3299 | H49: ='6. Historical Wholesale'!H49 -> 63036.68228 | I49: 0.7791 | J49: 49111.87916 | L49: ='6. Historical Wholesale'!L49 -> 63036.68228 | M49: 1.7713 | N49: 111656.8753 | P49: 160768.7545
B50: August | D50: ='6. Historical Wholesale'!D50 -> 64385.49 | E50: 3.3396 | F50: 215021.7824 | H50: ='6. Historical Wholesale'!H50 -> 64385.48228 | I50: 0.7791 | J50: 50162.72924 | L50: ='6. Historical Wholesale'!L50 -> 64385.48228 | M50: 1.7713 | N50: 114046.0048 | P50: 164208.734
B51: September | D51: ='6. Historical Wholesale'!D51 -> 56552.48 | E51: 3.3396 | F51: 188862.6622 | H51: ='6. Historical Wholesale'!H51 -> 56552.48386 | I51: 0.7791 | J51: 44060.04018 | L51: ='6. Historical Wholesale'!L51 -> 56552.48386 | M51: 1.7713 | N51: 100171.4147 | P51: 144231.4548
B52: October | D52: ='6. Historical Wholesale'!D52 -> 108567.19 | E52: 3.3396 | F52: 362570.9877 | H52: ='6. Historical Wholesale'!H52 -> 108567.1939 | I52: 0.7791 | J52: 84584.70074 | L52: ='6. Historical Wholesale'!L52 -> 108567.1939 | M52: 1.7713 | N52: 192305.0705 | P52: 276889.7712
B53: November | D53: ='6. Historical Wholesale'!D53 -> 104251.56 | E53: 3.3396 | F53: 348158.5098 | H53: ='6. Historical Wholesale'!H53 -> 104251.56 | I53: 0.7791 | J53: 81222.3904 | L53: ='6. Historical Wholesale'!L53 -> 104251.56 | M53: 1.7713 | N53: 184660.7882 | P53: 265883.1786
B54: December | D54: ='6. Historical Wholesale'!D54 -> 67124.72 | E54: 3.3396 | F54: 224169.7149 | H54: ='6. Historical Wholesale'!H54 -> 67124.72386 | I54: 0.7791 | J54: 52296.87236 | L54: ='6. Historical Wholesale'!L54 -> 67124.72386 | M54: 1.7713 | N54: 118898.0234 | P54: 171194.8957
B56: Total | D56: =SUM(D43:D54) -> 857127.7 | E56: =IF(D56<>0,F56/D56,0) -> 3.3396 | F56: =SUM(F43:F54) -> 2862463.667 | H56: =SUM(H43:H54) -> 857127.701 | I56: =IF(H56<>0,J56/H56,0) -> 0.7791 | J56: =SUM(J43:J54) -> 667788.1919 | L56: =SUM(L43:L54) -> 857127.701 | M56: =IF(L56<>0,N56/L56,0) -> 1.7713 | N56: =SUM(N43:N54) -> 1518230.297 | P56: =SUM(P43:P54) -> 2186018.489
B58: ='6. Historical Wholesale'!B58 -> Add Extra Host Here (I) | D58: Network | H58: Line Connection | L58: Transformation Connection | P58: Total Line
B60: Month | D60: Units Billed | E60: Rate | F60: Amount | H60: Units Billed | I60: Rate | J60: Amount | L60: Units Billed | M60: Rate | N60: Amount | P60: Amount
B62: January | D62: ='6. Historical Wholesale'!D62 -> 0 | E62: ='5. UTRs and Sub-Transmission'!J51 -> 0 | F62: =D62*E62 -> 0 | H62: ='6. Historical Wholesale'!H62 -> 0 | I62: ='5. UTRs and Sub-Transmission'!J53 -> 0 | J62: =H62*I62 -> 0 | L62: ='6. Historical Wholesale'!L62 -> 0 | M62: ='5. UTRs and Sub-Transmission'!J55 -> 0 | N62: =L62*M62 -> 0 | P62: =J62+N62 -> 0
B63: February | D63: ='6. Historical Wholesale'!D63 -> 0 | E63: =E62 -> 0 | F63: 0 | H63: ='6. Historical Wholesale'!H63 -> 0 | I63: =I62 -> 0 | J63: 0 | L63: ='6. Historical Wholesale'!L63 -> 0 | M63: =M62 -> 0 | N63: 0 | P63: 0
B64: March | D64: ='6. Historical Wholesale'!D64 -> 0 | E64: 0 | F64: 0 | H64: ='6. Historical Wholesale'!H64 -> 0 | I64: 0 | J64: 0 | L64: ='6. Historical Wholesale'!L64 -> 0 | M64: 0 | N64: 0 | P64: 0
B65: April | D65: ='6. Historical Wholesale'!D65 -> 0 | E65: 0 | F65: 0 | H65: ='6. Historical Wholesale'!H65 -> 0 | I65: 0 | J65: 0 | L65: ='6. Historical Wholesale'!L65 -> 0 | M65: 0 | N65: 0 | P65: 0
B66: May | D66: ='6. Historical Wholesale'!D66 -> 0 | E66: 0 | F66: 0 | H66: ='6. Historical Wholesale'!H66 -> 0 | I66: 0 | J66: 0 | L66: ='6. Historical Wholesale'!L66 -> 0 | M66: 0 | N66: 0 | P66: 0
B67: June | D67: ='6. Historical Wholesale'!D67 -> 0 | E67: 0 | F67: 0 | H67: ='6. Historical Wholesale'!H67 -> 0 | I67: 0 | J67: 0 | L67: ='6. Historical Wholesale'!L67 -> 0 | M67: 0 | N67: 0 | P67: 0
B68: July | D68: ='6. Historical Wholesale'!D68 -> 0 | E68: 0 | F68: 0 | H68: ='6. Historical Wholesale'!H68 -> 0 | I68: 0 | J68: 0 | L68: ='6. Historical Wholesale'!L68 -> 0 | M68: 0 | N68: 0 | P68: 0
B69: August | D69: ='6. Historical Wholesale'!D69 -> 0 | E69: 0 | F69: 0 | H69: ='6. Historical Wholesale'!H69 -> 0 | I69: 0 | J69: 0 | L69: ='6. Historical Wholesale'!L69 -> 0 | M69: 0 | N69: 0 | P69: 0
B70: September | D70: ='6. Historical Wholesale'!D70 -> 0 | E70: 0 | F70: 0 | H70: ='6. Historical Wholesale'!H70 -> 0 | I70: 0 | J70: 0 | L70: ='6. Historical Wholesale'!L70 -> 0 | M70: 0 | N70: 0 | P70: 0
B71: October | D71: ='6. Historical Wholesale'!D71 -> 0 | E71: 0 | F71: 0 | H71: ='6. Historical Wholesale'!H71 -> 0 | I71: 0 | J71: 0 | L71: ='6. Historical Wholesale'!L71 -> 0 | M71: 0 | N71: 0 | P71: 0
B72: November | D72: ='6. Historical Wholesale'!D72 -> 0 | E72: 0 | F72: 0 | H72: ='6. Historical Wholesale'!H72 -> 0 | I72: 0 | J72: 0 | L72: ='6. Historical Wholesale'!L72 -> 0 | M72: 0 | N72: 0 | P72: 0
B73: December | D73: ='6. Historical Wholesale'!D73 -> 0 | E73: 0 | F73: 0 | H73: ='6. Historical Wholesale'!H73 -> 0 | I73: 0 | J73: 0 | L73: ='6. Historical Wholesale'!L73 -> 0 | M73: 0 | N73: 0 | P73: 0
B75: Total | D75: =SUM(D62:D73) -> 0 | E75: =IF(D75<>0,F75/D75,0) -> 0 | F75: =SUM(F62:F73) -> 0 | H75: =SUM(H62:H73) -> 0 | I75: =IF(H75<>0,J75/H75,0) -> 0 | J75: =SUM(J62:J73) -> 0 | L75: =SUM(L62:L73) -> 0 | M75: =IF(L75<>0,N75/L75,0) -> 0 | N75: =SUM(N62:N73) -> 0 | P75: =SUM(P62:P73) -> 0
B77: ='6. Historical Wholesale'!B77 -> Add Extra Host Here (II) | D77: Network | H77: Line Connection | L77: Transformation Connection | P77: Total Line
B79: Month | D79: Units Billed | E79: Rate | F79: Amount | H79: Units Billed | I79: Rate | J79: Amount | L79: Units Billed | M79: Rate | N79: Amount | P79: Amount
B81: January | D81: ='6. Historical Wholesale'!D81 -> 0 | E81: ='5. UTRs and Sub-Transmission'!J66 -> 0 | F81: =D81*E81 -> 0 | H81: ='6. Historical Wholesale'!H81 -> 0 | I81: ='5. UTRs and Sub-Transmission'!J68 -> 0 | J81: =H81*I81 -> 0 | L81: ='6. Historical Wholesale'!L81 -> 0 | M81: ='5. UTRs and Sub-Transmission'!J70 -> 0 | N81: =L81*M81 -> 0 | P81: =J81+N81 -> 0
B82: February | D82: ='6. Historical Wholesale'!D82 -> 0 | E82: =E81 -> 0 | F82: 0 | H82: ='6. Historical Wholesale'!H82 -> 0 | I82: =I81 -> 0 | J82: 0 | L82: ='6. Historical Wholesale'!L82 -> 0 | M82: =M81 -> 0 | N82: 0 | P82: 0
B83: March | D83: ='6. Historical Wholesale'!D83 -> 0 | E83: 0 | F83: 0 | H83: ='6. Historical Wholesale'!H83 -> 0 | I83: 0 | J83: 0 | L83: ='6. Historical Wholesale'!L83 -> 0 | M83: 0 | N83: 0 | P83: 0
B84: April | D84: ='6. Historical Wholesale'!D84 -> 0 | E84: 0 | F84: 0 | H84: ='6. Historical Wholesale'!H84 -> 0 | I84: 0 | J84: 0 | L84: ='6. Historical Wholesale'!L84 -> 0 | M84: 0 | N84: 0 | P84: 0
B85: May | D85: ='6. Historical Wholesale'!D85 -> 0 | E85: 0 | F85: 0 | H85: ='6. Historical Wholesale'!H85 -> 0 | I85: 0 | J85: 0 | L85: ='6. Historical Wholesale'!L85 -> 0 | M85: 0 | N85: 0 | P85: 0
B86: June | D86: ='6. Historical Wholesale'!D86 -> 0 | E86: 0 | F86: 0 | H86: ='6. Historical Wholesale'!H86 -> 0 | I86: 0 | J86: 0 | L86: ='6. Historical Wholesale'!L86 -> 0 | M86: 0 | N86: 0 | P86: 0
B87: July | D87: ='6. Historical Wholesale'!D87 -> 0 | E87: 0 | F87: 0 | H87: ='6. Historical Wholesale'!H87 -> 0 | I87: 0 | J87: 0 | L87: ='6. Historical Wholesale'!L87 -> 0 | M87: 0 | N87: 0 | P87: 0
B88: August | D88: ='6. Historical Wholesale'!D88 -> 0 | E88: 0 | F88: 0 | H88: ='6. Historical Wholesale'!H88 -> 0 | I88: 0 | J88: 0 | L88: ='6. Historical Wholesale'!L88 -> 0 | M88: 0 | N88: 0 | P88: 0
B89: September | D89: ='6. Historical Wholesale'!D89 -> 0 | E89: 0 | F89: 0 | H89: ='6. Historical Wholesale'!H89 -> 0 | I89: 0 | J89: 0 | L89: ='6. Historical Wholesale'!L89 -> 0 | M89: 0 | N89: 0 | P89: 0
B90: October | D90: ='6. Historical Wholesale'!D90 -> 0 | E90: 0 | F90: 0 | H90: ='6. Historical Wholesale'!H90 -> 0 | I90: 0 | J90: 0 | L90: ='6. Historical Wholesale'!L90 -> 0 | M90: 0 | N90: 0 | P90: 0
B91: November | D91: ='6. Historical Wholesale'!D91 -> 0 | E91: 0 | F91: 0 | H91: ='6. Historical Wholesale'!H91 -> 0 | I91: 0 | J91: 0 | L91: ='6. Historical Wholesale'!L91 -> 0 | M91: 0 | N91: 0 | P91: 0
B92: December | D92: ='6. Historical Wholesale'!D92 -> 0 | E92: 0 | F92: 0 | H92: ='6. Historical Wholesale'!H92 -> 0 | I92: 0 | J92: 0 | L92: ='6. Historical Wholesale'!L92 -> 0 | M92: 0 | N92: 0 | P92: 0
B94: Total | D94: =SUM(D81:D92) -> 0 | E94: =IF(D94<>0,F94/D94,0) -> 0 | F94: =SUM(F81:F92) -> 0 | H94: =SUM(H81:H92) -> 0 | I94: =IF(H94<>0,J94/H94,0) -> 0 | J94: =SUM(J81:J92) -> 0 | L94: =SUM(L81:L92) -> 0 | M94: =IF(L94<>0,N94/L94,0) -> 0 | N94: =SUM(N81:N92) -> 0 | P94: =SUM(P81:P92) -> 0
B96: Total | D96: Network | H96: Line Connection | L96: Transformation Connection | P96: Total Line
B98: Month | D98: Units Billed | E98: Rate | F98: Amount | H98: Units Billed | I98: Rate | J98: Amount | L98: Units Billed | M98: Rate | N98: Amount | P98: Amount
B100: January | D100: =D24+D43+D62+D81 -> 133759.63 | E100: =IF(D100<>0,F100/D100,0) -> 3.46955207 | F100: =F24+F43+F62+F81 -> 464086.0011 | H100: =H24+H43+H62+H81 -> 126321.053 | I100: =IF(H100<>0,J100/H100,0) -> 0.8127867027 | J100: =J24+J43+J62+J81 -> 102672.0721 | L100: =L24+L43+L62+L81 -> 128113.6644 | M100: =IF(L100<>0,N100/L100,0) -> 1.865656209 | N100: =N24+N43+N62+N81 -> 239016.0533 | P100: =J100+N100 -> 341688.1255
B101: February | D101: =D25+D44+D63+D82 -> 122330.11 | E101: 3.481602053 | F101: 425904.7622 | H101: =H25+H44+H63+H82 -> 125504.11 | I101: 0.8206671001 | J101: =J25+J44+J63+J82 -> 102997.094 | L101: =L25+L44+L63+L82 -> 125504.11 | M101: 1.885026488 | N101: =N25+N44+N63+N82 -> 236578.5717 | P101: 339575.6657
B102: March | D102: 120101.71 | E102: 3.483753938 | F102: 418404.8051 | H102: =H26+H45+H64+H83 -> 129850.7144 | I102: 0.8237517104 | J102: =J26+J45+J64+J83 -> 106964.7481 | L102: =L26+L45+L64+L83 -> 129850.7144 | M102: 1.893465901 | N102: =N26+N45+N64+N83 -> 245867.8999 | P102: 352832.648
B103: April | D103: 107078.47 | E103: 3.456654792 | F103: 370133.3064 | H103: =H27+H46+H65+H84 -> 123353.47 | I103: 0.8199209473 | J103: =J27+J46+J65+J84 -> 101140.094 | L103: =L27+L46+L65+L84 -> 123353.47 | M103: 1.882985034 | N103: =N27+N46+N65+N84 -> 232272.7379 | P103: 333412.8319
B104: May | D104: 102513.69 | E104: 3.506370151 | F104: 359450.9427 | H104: =H28+H47+H66+H85 -> 95991.95744 | I104: 0.8234527533 | J104: =J28+J47+J66+J85 -> 79044.84165 | L104: =L28+L47+L66+L85 -> 96023.105 | M104: 1.892689272 | N104: =N28+N47+N66+N85 -> 181741.9007 | P104: 260786.7424
B105: June | D105: 106279.96 | E105: 3.471853983 | F105: 368988.5024 | H105: =H29+H48+H67+H86 -> 124499.9561 | I105: 0.8244331967 | J105: =J29+J48+J67+J86 -> 102641.8968 | L105: =L29+L48+L67+L86 -> 124499.9561 | M105: 1.895330429 | N105: =N29+N48+N67+N86 -> 235968.5553 | P105: 338610.4521
B106: July | D106: 104826.69 | E106: 3.467330028 | F106: 363468.7299 | H106: =H30+H49+H68+H87 -> 114648.6823 | I106: 0.8200209309 | J106: =J30+J49+J68+J87 -> 94014.31916 | L106: =L30+L49+L68+L87 -> 114648.6823 | M106: 1.883258586 | N106: =N30+N49+N68+N87 -> 215913.1153 | P106: 309927.4345
B107: August | D107: 119835.49 | E107: 3.487854745 | F107: 417968.7824 | H107: =H31+H50+H69+H88 -> 110683.4823 | I107: 0.8171227303 | J107: =J31+J50+J69+J88 -> 90441.98924 | L107: =L31+L50+L69+L88 -> 110683.4823 | M107: 1.875329186 | N107: =N31+N50+N69+N88 -> 207567.9648 | P107: 298009.954
B108: September | D108: 113461.48 | E108: 3.500303382 | F108: 397149.6022 | H108: =H32+H51+H70+H89 -> 121787.4839 | I108: 0.8277902374 | J108: =J32+J51+J70+J89 -> 100814.4902 | L108: =L32+L51+L70+L89 -> 121787.4839 | M108: 1.904515204 | N108: =N32+N51+N70+N89 -> 231946.1147 | P108: 332760.6048
B109: October | D109: 159376.19 | E109: 3.44174326 | F109: 548531.9277 | H109: =H33+H52+H71+H90 -> 173697.1939 | I109: 0.8131841258 | J109: =J33+J52+J71+J90 -> 141247.8007 | L109: =L33+L52+L71+L90 -> 173697.1939 | M109: 1.864553268 | N109: =N33+N52+N71+N90 -> 323867.6705 | P109: 465115.4712
B110: November | D110: 158194.56 | E110: 3.448853676 | F110: 545589.8898 | H110: =H34+H53+H72+H91 -> 164026.56 | I110: 0.8122260224 | J110: =J34+J53+J72+J91 -> 133226.6404 | L110: =L34+L53+L72+L91 -> 164026.56 | M110: 1.861931923 | N110: =N34+N53+N72+N91 -> 305406.2882 | P110: 438632.9286
B111: December | D111: 118043.72 | E111: 3.477806824 | F111: 410533.2549 | H111: =H35+H54+H73+H92 -> 121067.7239 | I111: 0.8196014528 | J111: =J35+J54+J73+J92 -> 99227.28236 | L111: =L35+L54+L73+L92 -> 121067.7239 | M111: 1.882110905 | N111: =N35+N54+N73+N92 -> 227862.8834 | P111: 327090.1657
B113: Total | D113: =SUM(D100:D111) -> 1465801.7 | E113: =IF(D113<>0,F113/D113,0) -> 3.472646066 | F113: =SUM(F100:F111) -> 5090210.507 | H113: =SUM(H100:H111) -> 1531432.387 | I113: =IF(H113<>0,J113/H113,0) -> 0.8191241607 | J113: =SUM(J100:J111) -> 1254433.269 | L113: =SUM(L100:L111) -> 1533256.146 | M113: =IF(L113<>0,N113/L113,0) -> 1.880970615 | N113: =SUM(N100:N111) -> 2884009.756 | P113: =SUM(P100:P111) -> 4138443.025
N115: Low Voltage Switchgear Credit (if applicable) | P115: ='5. UTRs and Sub-Transmission'!J75 -> 0
N117: Total including deduction for Low Voltage Switchgear Credit | P117: =P113+P115 -> 4138443.025

Sheet 9. RTSR Rates to Forecast
A13: The purpose of this sheet is to re-align the current RTS Network Rates to recover current wholesale network costs.
A15: Rate Class | B15: Rate Description | C15: Unit | D15: Current RTSR-Network | E15: Loss Adjusted Billed kWh | F15: Billed kW | G15: Billed Amount | H15: Billed Amount % | I15: Current Wholesale Billing | J15: Adjusted RTSR Network
A17: Residential | B17: RTSR - Network | C17: kWh | D17: 0.0071 | E17: 189912684.9 | F17: 0 | G17: =ROUND(D17*E17, 2) -> 1348380.06 | H17: =G17/4928288 -> 0.273600094 | I17: =H17*total_current_wholesale_network -> 1394259.187 | J17: =IF(ISERROR(I17/E17), 0, I17/E17) -> 0.007341580095
A18: General Service Less Than 50 kW | B18: RTSR - Network | C18: kWh | D18: 0.0063 | E18: 92130098.07 | F18: 0 | G18: =ROUND(D18*E18, 2) -> 580419.62 | H18: 0.1177730725 | I18: 600168.6108 | J18: =IF(ISERROR(I18/E18), 0, I18/E18) -> 0.006514359839
A19: General Service 50 to 4,999 kW | B19: RTSR - Network | C19: kW | D19: 2.7797 | F19: 735399.97 | G19: =ROUND(D19*F19, 2) -> 2044191.3 | H19: 0.4147873054 | I19: 2113745.66 | J19: =IF(ISERROR(I19/F19), 0, I19/F19) -> 2.874280319
A20: Large Use | B20: RTSR - Network | C20: kW | D20: 3.3492 | F20: 280183 | G20: =ROUND(D20*F20, 2) -> 938388.9 | H20: 0.1904086977 | I20: 970317.9271 | J20: =IF(ISERROR(I20/F20), 0, I20/F20) -> 3.463157747
A21: Unmetered Scattered Load | B21: RTSR - Network | C21: kWh | D21: 0.0071 | E21: 1226516.112 | F21: 0 | G21: =ROUND(D21*E21, 2) -> 8708.26 | H21: 0.001766994948 | I21: 9004.561746 | J21: =IF(ISERROR(I21/E21), 0, I21/E21) -> 0.007341576402
A22: Street Lighting | B22: RTSR - Network | C22: kW | D22: 2.0078 | F22: 4084 | G22: =ROUND(D22*F22, 2) -> 8199.86 | H22: 0.001663835393 | I22: 8478.86325 | J22: =IF(ISERROR(I22/F22), 0, I22/F22) -> 2.076117348
A23: Standby Power | B23: RTSR - Network | C23: kW | G23: =ROUND(D23*F23, 2) -> 0 | H23: 0 | I23: 0 | J23: =IF(ISERROR(I23/F23), 0, I23/F23) -> 0
A25: The purpose of this table is to re-align the current RTS Connection Rates to recover current wholesale connection costs.
A26: Rate Class | B26: Rate Description | C26: Unit | D26: Current RTSR-Connection | E26: Loss Adjusted Billed kWh | F26: Billed kW | G26: Billed Amount | H26: Billed Amount % | I26: Current Wholesale Billing | J26: Adjusted RTSR-Connection
A28: Residential | B28: RTSR - Connection | C28: kWh | D28: 0.0056 | E28: 189912684.9 | F28: 0 | G28: =ROUND(D28*E28, 2) -> 1063511.04 | H28: =G28/3931555.58 -> 0.2705064238 | I28: =H28*Total_Current_Wholesale_Lineplus -> 1120320.661 | J28: =IF(ISERROR(I28/E28), 0, I28/E28) -> 0.005899135497
A29: General Service Less Than 50 kW | B29: RTSR - Connection | C29: kWh | D29: 0.0051 | E29: 92130098.07 | F29: 0 | G29: =ROUND(D29*E29, 2) -> 469863.5 | H29: 0.1195108375 | I29: 494962.2213 | J29: =IF(ISERROR(I29/E29), 0, I29/E29) -> 0.005372426945
A30: General Service 50 to 4,999 kW | B30: RTSR - Connection | C30: kW | D30: 2.2225 | F30: 735399.97 | G30: =ROUND(D30*F30, 2) -> 1634426.43 | H30: 0.4157200367 | I30: 1721732.666 | J30: =IF(ISERROR(I30/F30), 0, I30/F30) -> 2.341219385
A31: Large Use | B31: RTSR - Connection | C31: kW | D31: 2.678 | F31: 280183 | G31: =ROUND(D31*F31, 2) -> 750330.07 | H31: 0.1908481401 | I31: 790410.4876 | J31: =IF(ISERROR(I31/F31), 0, I31/F31) -> 2.82105084
A32: Unmetered Scattered Load | B32: RTSR - Connection | C32: kWh | D32: 0.0056 | E32: 1226516.112 | F32: 0 | G32: =ROUND(D32*E32, 2) -> 6868.49 | H32: 0.001747015872 | I32: 7235.384462 | J32: =IF(ISERROR(I32/E32), 0, I32/E32) -> 0.005899135275
A33: Street Lighting | B33: RTSR - Connection | C33: kW | D33: 1.6053 | F33: 4084 | G33: =ROUND(D33*F33, 2) -> 6556.05 | H33: 0.001667546056 | I33: 6906.25484 | J33: =IF(ISERROR(I33/F33), 0, I33/F33) -> 1.691051626
A34: Standby Power | B34: RTSR - Connection | C34: kW | G34: =ROUND(D34*F34, 2) -> 0 | H34: 0 | I34: 0 | J34: =IF(ISERROR(I34/F34), 0, I34/F34) -> 0
A36: The purpose of this table is to update the re-aligned RTS Network Rates to recover future wholesale network costs.
A37: Rate Class | B37: Rate Description | C37: Unit | D37: Adjusted RTSR-Network | E37: Loss Adjusted Billed kWh | F37: Billed kW | G37: Billed Amount | H37: Billed Amount % | I37: Current Wholesale Billing | J37: Proposed RTSR-Network
A39: Residential | B39: RTSR - Network | C39: kWh | D39: 0.007341580095 | E39: 189912684.9 | F39: 0 | G39: =IF(ISERROR(D39*E39), 0, ROUND(D39*E39, 2)) -> 1394259.19 | H39: =G39/5095974.81 -> 0.2736000946 | I39: =H39*forecast_wholesale_network -> 1392682.076 | J39: =IF(ISERROR(I39/E39), 0, I39/E39) -> 0.007333275695
A40: General Service Less Than 50 kW | B40: RTSR - Network | C40: kWh | D40: 0.006514359839 | E40: 92130098.07 | F40: 0 | G40: =IF(ISERROR(D40*E40), 0, ROUND(D40*E40, 2)) -> 600168.61 | H40: 0.1177730724 | I40: 599489.7303 | J40: =IF(ISERROR(I40/E40), 0, I40/E40) -> 0.006506991123
A41: General Service 50 to 4,999 kW | B41: RTSR - Network | C41: kW | D41: 2.874280319 | F41: 735399.97 | G41: =ROUND(D41*F41, 2) -> 2113745.66 | H41: 0.4147873054 | I41: 2111354.7 | J41: =IF(ISERROR(I41/F41), 0, I41/F41) -> 2.871029081
A42: Large Use | B42: RTSR - Network | C42: kW | D42: 3.463157747 | F42: 280183 | G42: =ROUND(D42*F42, 2) -> 970317.93 | H42: 0.1904086983 | I42: 969220.3566 | J42: =IF(ISERROR(I42/F42), 0, I42/F42) -> 3.459240413
A43: Unmetered Scattered Load | B43: RTSR - Network | C43: kWh | D43: 0.007341576402 | E43: 1226516.112 | F43: 0 | G43: =IF(ISERROR(D43*E43), 0, ROUND(D43*E43, 2)) -> 9004.56 | H43: 0.001766994606 | I43: 8994.374508 | J43: =IF(ISERROR(I43/E43), 0, I43/E43) -> 0.007333270568
A44: Street Lighting | B44: RTSR - Network | C44: kW | D44: 2.076117348 | F44: 4084 | G44: =ROUND(D44*F44, 2) -> 8478.86 | H44: 0.001663834755 | I44: 8469.269152 | J44: =IF(ISERROR(I44/F44), 0, I44/F44) -> 2.073768157
A45: Standby Power | B45: RTSR - Network | C45: kW | D45: 0 | G45: =ROUND(D45*F45, 2) -> 0 | H45: 0 | I45: 0 | J45: =IF(ISERROR(I45/F45), 0, I45/F45) -> 0
A47: The purpose of this table is to update the re-aligned RTS Connection Rates to recover future wholesale connection costs.
A48: Rate Class | B48: Rate Description | C48: Unit | D48: Adjusted RTSR-Connection | E48: Loss Adjusted Billed kWh | F48: Billed kW | G48: Billed Amount | H48: Billed Amount % | I48: Current Wholesale Billing | J48: Proposed RTSR-Connection
A50: Residential | B50: RTSR - Connection | C50: kWh | D50: 0.005899135497 | E50: 189912684.9 | F50: 0 | G50: =ROUND(D50*E50, 2) -> 1120320.66 | H50: =G50/4141567.67 -> 0.270506424 | I50: =H50*forecast_wholesale_lineplus -> 1119475.423 | J50: =IF(ISERROR(I50/E50), 0, I50/E50) -> 0.005894684834
A51: General Service Less Than 50 kW | B51: RTSR - Connection | C51: kWh | D51: 0.005372426945 | E51: 92130098.07 | F51: 0 | G51: =ROUND(D51*E51, 2) -> 494962.22 | H51: 0.1195108373 | I51: 494588.791 | J51: =IF(ISERROR(I51/E51), 0, I51/E51) -> 0.005368373652
A52: General Service 50 to 4,999 kW | B52: RTSR - Connection | C52: kW | D52: 2.341219385 | F52: 735399.97 | G52: =ROUND(D52*F52, 2) -> 1721732.67 | H52: 0.4157200382 | I52: 1720433.692 | J52: =IF(ISERROR(I52/F52), 0, I52/F52) -> 2.339453036
A53: Large Use | B53: RTSR - Connection | C53: kW | D53: 2.82105084 | F53: 280183 | G53: =ROUND(D53*F53, 2) -> 790410.49 | H53: 0.1908481408 | I53: 789814.1572 | J53: =IF(ISERROR(I53/F53), 0, I53/F53) -> 2.81892248
A54: Unmetered Scattered Load | B54: RTSR - Connection | C54: kWh | D54: 0.005899135275 | E54: 1226516.112 | F54: 0 | G54: =ROUND(D54*E54, 2) -> 7235.38 | H54: 0.001747014796 | I54: 7229.921198 | J54: =IF(ISERROR(I54/E54), 0, I54/E54) -> 0.00589468098
A55: Street Lighting | B55: RTSR - Connection | C55: kW | D55: 1.691051626 | F55: 4084 | G55: =ROUND(D55*F55, 2) -> 6906.25 | H55: 0.001667544889 | I55: 6901.039513 | J55: =IF(ISERROR(I55/F55), 0, I55/F55) -> 1.689774612
A56: Standby Power | B56: RTSR - Connection | C56: kW | D56: 0 | G56: =ROUND(D56*F56, 2) -> 0 | H56: 0 | I56: 0 | J56: =IF(ISERROR(I56/F56), 0, I56/F56) -> 0

Sheet hidden1 (hidden)
A1: =IF('3. Rate Classes'!L17=1, '3. Rate Classes'!C17, "") -> Residential | B1: 1
A2: =IF('3. Rate Classes'!L18=1, '3. Rate Classes'!C18, "") -> General Service Less Than 50 kW | B2: 2
A3: =IF('3. Rate Classes'!L19=1, '3. Rate Classes'!C19, "") -> General Service 50 to 4,999 kW | B3: 3
A4: =IF('3. Rate Classes'!L20=1, '3. Rate Classes'!C20, "") -> Large Use | B4: 4
A5: =IF('3. Rate Classes'!L21=1, '3. Rate Classes'!C21, "") -> Unmetered Scattered Load | B5: 5
A6: =IF('3. Rate Classes'!L22=1, '3. Rate Classes'!C22, "") -> Street Lighting | B6: 6
A7: =IF('3. Rate Classes'!L23=1, '3. Rate Classes'!C23, "") -> Standby Power | B7: 7
A8: =IF('3. Rate Classes'!L24=1, '3. Rate Classes'!C24, "") ->  | B8: 8
A9: =IF('3. Rate Classes'!L25=1, '3. Rate Classes'!C25, "") ->  | B9: 9
A10: =IF('3. Rate Classes'!L26=1, '3. Rate Classes'!C26, "") ->  | B10: 10
A11: =IF('3. Rate Classes'!L27=1, '3. Rate Classes'!C27, "") ->  | B11: 11
A12: =IF('3. Rate Classes'!L28=1, '3. Rate Classes'!C28, "") ->  | B12: 12
A13: =IF('3. Rate Classes'!L29=1, '3. Rate Classes'!C29, "") ->  | B13: 13
A14: =IF('3. Rate Classes'!L30=1, '3. Rate Classes'!C30, "") ->  | B14: 14
A15: =IF('3. Rate Classes'!L31=1, '3. Rate Classes'!C31, "") ->  | B15: 15
A16: =IF('3. Rate Classes'!L32=1, '3. Rate Classes'!C32, "") ->  | B16: 16
A17: =IF('3. Rate Classes'!L33=1, '3. Rate Classes'!C33, "") ->  | B17: 17
A18: =IF('3. Rate Classes'!L34=1, '3. Rate Classes'!C34, "") ->  | B18: 18
A19: =IF('3. Rate Classes'!L35=1, '3. Rate Classes'!C35, "") ->  | B19: 19
A20: =IF('3. Rate Classes'!L36=1, '3. Rate Classes'!C36, "") ->  | B20: 20
A21: =IF('3. Rate Classes'!L37=1, '3. Rate Classes'!C37, "") ->  | B21: 21
A22: =IF('3. Rate Classes'!L38=1, '3. Rate Classes'!C38, "") ->  | B22: 22
